Workbook

Sheet Input
A1: 下欄に記入した数値は, グラフ印刷ボタンでICFシートに自動転記されます。
A2: CAT-R 成績のまとめ | B2: ID | E2: 実施日 | N2: 12
B3: 氏名 | D3: 様 | E3: 検査者 | N3: 3
B4: 年齢 | D4: 下欄に入力可能 | F4: 入力範囲 | N4: ICFシート(高次脳).xlsm
A5: ① Span | B5: Digit Span | C5: forward | E5: 桁 | F5: 0～10
C6: backward | E6: 桁 | F6: 0～10
B7: Tapping Span | C7: forward | E7: 桁 | F7: 0～10
C8: backward | E8: 桁 | F8: 0～10
A9: ② Cancellation and Detection | B9: 1) Visual Cancellation Ⓐ図形 △ | C9: 所要時間 | E9: sec. | F9: 0～210
C10: 正答率 | E10: % | F10: 0～100
C11: 的中率 | E11: %
B12: 1) Visual Cancellation Ⓐ図形 ※ | C12: 所要時間 | E12: sec. | F12: 0～210
C13: 正答率 | E13: % | F13: 0～100
C14: 的中率 | E14: %
B15: 1) Visual Cancellation Ⓒ数字 3 | C15: 所要時間 | E15: sec. | F15: 0～210
C16: 正答率 | E16: % | F16: 0～100
C17: 的中率 | E17: %
B18: 1) Visual Cancellation Ⓓ仮名 か | C18: 所要時間 | E18: sec. | F18: 0～210
C19: 正答率 | E19: % | F19: 0～100
C20: 的中率 | E20: %
B21: 2) Auditory Detection | C21: 正答率 | E21: % | F21: 0～100
C22: 的中率 | E22: %
A23: ③ Memory Updating | B23: 3スパン | C23: 正答率 | E23: % | F23: 0～100
B24: 4スパン | C24: 正答率 | E24: %
A25: ④ PASAT | B25: 2秒条件 | C25: 正答率 | E25: % | F25: 0～100
B26: 1秒条件 | C26: 正答率 | E26: %
A27: ⑤ CPT-2 Continuus Performance Test-2 | B27: 平均反応時間 | C27: SRT課題 | E27: m sec. | F27: 0.0～800.0
C28: X課題 | E28: m sec.
C29: AX課題 | E29: m sec.
B30: 誤反応 | C30: SRT課題 | E30: 回 | F30: 4≦異常
C31: X課題 | E31: 回 | F31: 10≦異常
C32: AX課題 | E32: 回 | F32: 11≦異常
B33: 正答率 | C33: SRT課題 | E33: % | F33: 0～100
C34: X課題 | E34: %
C35: AX課題 | E35: %
B36: 的中率 | C36: SRT課題 | E36: % | F36: 0～100
C37: X課題 | E37: %
C38: AX課題 | E38: %
B39: 修正正答率 | C39: SRT課題 | E39: % | F39: 0～100
C40: X課題 | E40: %
C41: AX課題 | E41: %
B42: 変動係数 | C42: SRT課題 | F42: 0～30
C43: X課題
C44: AX課題

Sheet Graph選（20歳代）
A1: CAT-R プロフィール | F1: 健常例20歳代
E2: ID | F2: =IF(Input!C2<>"",Input!C2,"") ->  | G2: 検査 | H2: =IF(Input!F3<>"",Input!F3,"") -> 
A3: 実施日 | C3: =IF(Input!F2<>"",Input!F2,"") ->  | E3: 氏名 | F3: =IF(Input!C3<>"",Input!C3,"") ->  | G3: 様 | H3: =IF(Input!C4<>"",Input!C4,"") -> 
F4: 平均± | G4: 1 | H4: 標準偏差
A5: Digit Span | C5: forward | D5: =IF(Input!D5<>"",Input!D5,"") ->  | E5: 桁
C6: backward | D6: =IF(Input!D6<>"",Input!D6,"") ->  | E6: 桁
A8: Tapping Span | C8: forward | D8: =IF(Input!D7<>"",Input!D7,"") ->  | E8: 桁
C9: backward | D9: =IF(Input!D8<>"",Input!D8,"") ->  | E9: 桁
A11: Visual Cancellation Ⓐ 図形△ | C11: 正答率 | D11: =IF(Input!D10<>"",Input!D10,"") ->  | E11: ％
C12: 的中率 | D12: =IF(Input!D11<>"",Input!D11,"") ->  | E12: ％
A14: Visual Cancellation Ⓑ 図形※ | C14: 正答率 | D14: =IF(Input!D13<>"",Input!D13,"") ->  | E14: ％
C15: 的中率 | D15: =IF(Input!D14<>"",Input!D14,"") ->  | E15: ％
A17: Visual Cancellation Ⓒ 数字 3 | C17: 正答率 | D17: =IF(Input!D16<>"",Input!D16,"") ->  | E17: ％
C18: 的中率 | D18: =IF(Input!D17<>"",Input!D17,"") ->  | E18: ％
A20: Visual Cancellation Ⓓ 仮名 か | C20: 正答率 | D20: =IF(Input!D19<>"",Input!D19,"") ->  | E20: ％
C21: 的中率 | D21: =IF(Input!D20<>"",Input!D20,"") ->  | E21: ％
A23: Auditory Detection | C23: 正答率 | D23: =IF(Input!D21<>"",Input!D21,"") ->  | E23: ％
C24: 的中率 | D24: =IF(Input!D22<>"",Input!D22,"") ->  | E24: ％
A26: Memory Updating | C26: 3スパン 正答率 | D26: =IF(Input!D23<>"",Input!D23,"") ->  | E26: ％
C27: 4スパン 正答率 | D27: =IF(Input!D24<>"",Input!D24,"") ->  | E27: ％
A29: PASAT | C29: 2秒条件 正答率 | D29: =IF(Input!D25<>"",Input!D25,"") ->  | E29: ％
C30: 1秒条件 正答率 | D30: =IF(Input!D26<>"",Input!D26,"") ->  | E30: ％
A32: CPT-2 正答率 | C32: SRT | D32: =IF(Input!D33<>"",Input!D33,"") ->  | E32: ％
C33: X | D33: =IF(Input!D34<>"",Input!D34,"") ->  | E33: ％
C34: AX | D34: =IF(Input!D35<>"",Input!D35,"") ->  | E34: ％
A36: Visual Cancellation 所要時間 | C36: Ⓐ 図形△ | D36: =IF(Input!D9<>"",Input!D9,"") ->  | E36: sec.
C38: Ⓑ 図形※ | D38: =IF(Input!D12<>"",Input!D12,"") ->  | E38: sec.
C40: Ⓒ 数字 3 | D40: =IF(Input!D15<>"",Input!D15,"") ->  | E40: sec.
C42: Ⓓ 仮名 か | D42: =IF(Input!D18<>"",Input!D18,"") ->  | E42: sec.
A44: CPT-2 平均反応時間 | C44: SRT | D44: =IF(Input!D27<>"",Input!D27,"") ->  | E44: msec.
C45: X | D45: =IF(Input!D28<>"",Input!D28,"") ->  | E45: msec.
C46: AX | D46: =IF(Input!D29<>"",Input!D29,"") ->  | E46: msec.
A48: CPT-2 誤反応 | C48: SRT | D48: =IF(Input!D30<>"",Input!D30,"") ->  | E48: 回 | H48: =IF(D48="","",IF(ISNUMBER(D48)=FALSE,"",(IF(D48>=4,"異常","正常")))) -> 
C49: X | D49: =IF(Input!D31<>"",Input!D31,"") ->  | E49: 回 | H49: =IF(D49="","",IF(ISNUMBER(D49)=FALSE,"",(IF(D49>=10,"異常","正常")))) -> 
C50: AX | D50: =IF(Input!D32<>"",Input!D32,"") ->  | E50: 回 | H50: =IF(D50="","",IF(ISNUMBER(D50)=FALSE,"",(IF(D50>=11,"異常","正常")))) -> 

Sheet Graph選（30歳代）
A1: CAT-R プロフィール | F1: 健常例30歳代
E2: ID | F2: =IF(Input!C2<>"",Input!C2,"") ->  | G2: 検査 | H2: =IF(Input!F3<>"",Input!F3,"") -> 
A3: 実施日 | C3: =IF(Input!F2<>"",Input!F2,"") ->  | E3: 氏名 | F3: =IF(Input!C3<>"",Input!C3,"") ->  | G3: 様 | H3: =IF(Input!C4<>"",Input!C4,"") -> 
F4: 平均± | G4: 1 | H4: 標準偏差
A5: Digit Span | C5: forward | D5: =IF(Input!D5<>"",Input!D5,"") ->  | E5: 桁
C6: backward | D6: =IF(Input!D6<>"",Input!D6,"") ->  | E6: 桁
A8: Tapping Span | C8: forward | D8: =IF(Input!D7<>"",Input!D7,"") ->  | E8: 桁
C9: backward | D9: =IF(Input!D8<>"",Input!D8,"") ->  | E9: 桁
A11: Visual Cancellation Ⓐ 図形△ | C11: 正答率 | D11: =IF(Input!D10<>"",Input!D10,"") ->  | E11: ％
C12: 的中率 | D12: =IF(Input!D11<>"",Input!D11,"") ->  | E12: ％
A14: Visual Cancellation Ⓑ 図形※ | C14: 正答率 | D14: =IF(Input!D13<>"",Input!D13,"") ->  | E14: ％
C15: 的中率 | D15: =IF(Input!D14<>"",Input!D14,"") ->  | E15: ％
A17: Visual Cancellation Ⓒ 数字 3 | C17: 正答率 | D17: =IF(Input!D16<>"",Input!D16,"") ->  | E17: ％
C18: 的中率 | D18: =IF(Input!D17<>"",Input!D17,"") ->  | E18: ％
A20: Visual Cancellation Ⓓ 仮名 か | C20: 正答率 | D20: =IF(Input!D19<>"",Input!D19,"") ->  | E20: ％
C21: 的中率 | D21: =IF(Input!D20<>"",Input!D20,"") ->  | E21: ％
A23: Auditory Detection | C23: 正答率 | D23: =IF(Input!D21<>"",Input!D21,"") ->  | E23: ％
C24: 的中率 | D24: =IF(Input!D22<>"",Input!D22,"") ->  | E24: ％
A26: Memory Updating | C26: 3スパン 正答率 | D26: =IF(Input!D23<>"",Input!D23,"") ->  | E26: ％
C27: 4スパン 正答率 | D27: =IF(Input!D24<>"",Input!D24,"") ->  | E27: ％
A29: PASAT | C29: 2秒条件 正答率 | D29: =IF(Input!D25<>"",Input!D25,"") ->  | E29: ％
C30: 1秒条件 正答率 | D30: =IF(Input!D26<>"",Input!D26,"") ->  | E30: ％
A32: CPT-2 正答率 | C32: SRT | D32: =IF(Input!D33<>"",Input!D33,"") ->  | E32: ％
C33: X | D33: =IF(Input!D34<>"",Input!D34,"") ->  | E33: ％
C34: AX | D34: =IF(Input!D35<>"",Input!D35,"") ->  | E34: ％
A36: Visual Cancellation 所要時間 | C36: Ⓐ 図形△ | D36: =IF(Input!D9<>"",Input!D9,"") ->  | E36: sec.
C38: Ⓑ 図形※ | D38: =IF(Input!D12<>"",Input!D12,"") ->  | E38: sec.
C40: Ⓒ 数字 3 | D40: =IF(Input!D15<>"",Input!D15,"") ->  | E40: sec.
C42: Ⓓ 仮名 か | D42: =IF(Input!D18<>"",Input!D18,"") ->  | E42: sec.
A44: CPT-2 平均反応時間 | C44: SRT | D44: =IF(Input!D27<>"",Input!D27,"") ->  | E44: msec.
C45: X | D45: =IF(Input!D28<>"",Input!D28,"") ->  | E45: msec.
C46: AX | D46: =IF(Input!D29<>"",Input!D29,"") ->  | E46: msec.
A48: CPT-2 誤反応 | C48: SRT | D48: =IF(Input!D30<>"",Input!D30,"") ->  | E48: 回 | H48: =IF(D48="","",IF(ISNUMBER(D48)=FALSE,"",(IF(D48>=4,"異常","正常")))) -> 
C49: X | D49: =IF(Input!D31<>"",Input!D31,"") ->  | E49: 回 | H49: =IF(D49="","",IF(ISNUMBER(D49)=FALSE,"",(IF(D49>=10,"異常","正常")))) -> 
C50: AX | D50: =IF(Input!D32<>"",Input!D32,"") ->  | E50: 回 | H50: =IF(D50="","",IF(ISNUMBER(D50)=FALSE,"",(IF(D50>=11,"異常","正常")))) -> 

Sheet Graph選（40歳代）
A1: CAT-R プロフィール | F1: 健常例40歳代
E2: ID | F2: =IF(Input!C2<>"",Input!C2,"") ->  | G2: 検査 | H2: =IF(Input!F3<>"",Input!F3,"") -> 
A3: 実施日 | C3: =IF(Input!F2<>"",Input!F2,"") ->  | E3: 氏名 | F3: =IF(Input!C3<>"",Input!C3,"") ->  | G3: 様 | H3: =IF(Input!C4<>"",Input!C4,"") -> 
F4: 平均± | G4: 1 | H4: 標準偏差
A5: Digit Span | C5: forward | D5: =IF(Input!D5<>"",Input!D5,"") ->  | E5: 桁
C6: backward | D6: =IF(Input!D6<>"",Input!D6,"") ->  | E6: 桁
A8: Tapping Span | C8: forward | D8: =IF(Input!D7<>"",Input!D7,"") ->  | E8: 桁
C9: backward | D9: =IF(Input!D8<>"",Input!D8,"") ->  | E9: 桁
A11: Visual Cancellation Ⓐ 図形△ | C11: 正答率 | D11: =IF(Input!D10<>"",Input!D10,"") ->  | E11: ％
C12: 的中率 | D12: =IF(Input!D11<>"",Input!D11,"") ->  | E12: ％
A14: Visual Cancellation Ⓑ 図形※ | C14: 正答率 | D14: =IF(Input!D13<>"",Input!D13,"") ->  | E14: ％
C15: 的中率 | D15: =IF(Input!D14<>"",Input!D14,"") ->  | E15: ％
A17: Visual Cancellation Ⓒ 数字 3 | C17: 正答率 | D17: =IF(Input!D16<>"",Input!D16,"") ->  | E17: ％
C18: 的中率 | D18: =IF(Input!D17<>"",Input!D17,"") ->  | E18: ％
A20: Visual Cancellation Ⓓ 仮名 か | C20: 正答率 | D20: =IF(Input!D19<>"",Input!D19,"") ->  | E20: ％
C21: 的中率 | D21: =IF(Input!D20<>"",Input!D20,"") ->  | E21: ％
A23: Auditory Detection | C23: 正答率 | D23: =IF(Input!D21<>"",Input!D21,"") ->  | E23: ％
C24: 的中率 | D24: =IF(Input!D22<>"",Input!D22,"") ->  | E24: ％
A26: Memory Updating | C26: 3スパン 正答率 | D26: =IF(Input!D23<>"",Input!D23,"") ->  | E26: ％
C27: 4スパン 正答率 | D27: =IF(Input!D24<>"",Input!D24,"") ->  | E27: ％
A29: PASAT | C29: 2秒条件 正答率 | D29: =IF(Input!D25<>"",Input!D25,"") ->  | E29: ％
C30: 1秒条件 正答率 | D30: =IF(Input!D26<>"",Input!D26,"") ->  | E30: ％
A32: CPT-2 正答率 | C32: SRT | D32: =IF(Input!D33<>"",Input!D33,"") ->  | E32: ％
C33: X | D33: =IF(Input!D34<>"",Input!D34,"") ->  | E33: ％
C34: AX | D34: =IF(Input!D35<>"",Input!D35,"") ->  | E34: ％
A36: Visual Cancellation 所要時間 | C36: Ⓐ 図形△ | D36: =IF(Input!D9<>"",Input!D9,"") ->  | E36: sec.
C38: Ⓑ 図形※ | D38: =IF(Input!D12<>"",Input!D12,"") ->  | E38: sec.
C40: Ⓒ 数字 3 | D40: =IF(Input!D15<>"",Input!D15,"") ->  | E40: sec.
C42: Ⓓ 仮名 か | D42: =IF(Input!D18<>"",Input!D18,"") ->  | E42: sec.
A44: CPT-2 平均反応時間 | C44: SRT | D44: =IF(Input!D27<>"",Input!D27,"") ->  | E44: msec.
C45: X | D45: =IF(Input!D28<>"",Input!D28,"") ->  | E45: msec.
C46: AX | D46: =IF(Input!D29<>"",Input!D29,"") ->  | E46: msec.
A48: CPT-2 誤反応 | C48: SRT | D48: =IF(Input!D30<>"",Input!D30,"") ->  | E48: 回 | H48: =IF(D48="","",IF(ISNUMBER(D48)=FALSE,"",(IF(D48>=4,"異常","正常")))) -> 
C49: X | D49: =IF(Input!D31<>"",Input!D31,"") ->  | E49: 回 | H49: =IF(D49="","",IF(ISNUMBER(D49)=FALSE,"",(IF(D49>=10,"異常","正常")))) -> 
C50: AX | D50: =IF(Input!D32<>"",Input!D32,"") ->  | E50: 回 | H50: =IF(D50="","",IF(ISNUMBER(D50)=FALSE,"",(IF(D50>=11,"異常","正常")))) -> 

Sheet Graph選（50歳代）
A1: CAT-R プロフィール | F1: 健常例50歳代
E2: ID | F2: =IF(Input!C2<>"",Input!C2,"") ->  | G2: 検査 | H2: =IF(Input!F3<>"",Input!F3,"") -> 
A3: 実施日 | C3: =IF(Input!F2<>"",Input!F2,"") ->  | E3: 氏名 | F3: =IF(Input!C3<>"",Input!C3,"") ->  | G3: 様 | H3: =IF(Input!C4<>"",Input!C4,"") -> 
F4: 平均± | G4: 1 | H4: 標準偏差
A5: Digit Span | C5: forward | D5: =IF(Input!D5<>"",Input!D5,"") ->  | E5: 桁
C6: backward | D6: =IF(Input!D6<>"",Input!D6,"") ->  | E6: 桁
A8: Tapping Span | C8: forward | D8: =IF(Input!D7<>"",Input!D7,"") ->  | E8: 桁
C9: backward | D9: =IF(Input!D8<>"",Input!D8,"") ->  | E9: 桁
A11: Visual Cancellation Ⓐ 図形△ | C11: 正答率 | D11: =IF(Input!D10<>"",Input!D10,"") ->  | E11: ％
C12: 的中率 | D12: =IF(Input!D11<>"",Input!D11,"") ->  | E12: ％
A14: Visual Cancellation Ⓑ 図形※ | C14: 正答率 | D14: =IF(Input!D13<>"",Input!D13,"") ->  | E14: ％
C15: 的中率 | D15: =IF(Input!D14<>"",Input!D14,"") ->  | E15: ％
A17: Visual Cancellation Ⓒ 数字 3 | C17: 正答率 | D17: =IF(Input!D16<>"",Input!D16,"") ->  | E17: ％
C18: 的中率 | D18: =IF(Input!D17<>"",Input!D17,"") ->  | E18: ％
A20: Visual Cancellation Ⓓ 仮名 か | C20: 正答率 | D20: =IF(Input!D19<>"",Input!D19,"") ->  | E20: ％
C21: 的中率 | D21: =IF(Input!D20<>"",Input!D20,"") ->  | E21: ％
A23: Auditory Detection | C23: 正答率 | D23: =IF(Input!D21<>"",Input!D21,"") ->  | E23: ％
C24: 的中率 | D24: =IF(Input!D22<>"",Input!D22,"") ->  | E24: ％
A26: Memory Updating | C26: 3スパン 正答率 | D26: =IF(Input!D23<>"",Input!D23,"") ->  | E26: ％
C27: 4スパン 正答率 | D27: =IF(Input!D24<>"",Input!D24,"") ->  | E27: ％
A29: PASAT | C29: 2秒条件 正答率 | D29: =IF(Input!D25<>"",Input!D25,"") ->  | E29: ％
C30: 1秒条件 正答率 | D30: =IF(Input!D26<>"",Input!D26,"") ->  | E30: ％
A32: CPT-2 正答率 | C32: SRT | D32: =IF(Input!D33<>"",Input!D33,"") ->  | E32: ％
C33: X | D33: =IF(Input!D34<>"",Input!D34,"") ->  | E33: ％
C34: AX | D34: =IF(Input!D35<>"",Input!D35,"") ->  | E34: ％
A36: Visual Cancellation 所要時間 | C36: Ⓐ 図形△ | D36: =IF(Input!D9<>"",Input!D9,"") ->  | E36: sec.
C38: Ⓑ 図形※ | D38: =IF(Input!D12<>"",Input!D12,"") ->  | E38: sec.
C40: Ⓒ 数字 3 | D40: =IF(Input!D15<>"",Input!D15,"") ->  | E40: sec.
C42: Ⓓ 仮名 か | D42: =IF(Input!D18<>"",Input!D18,"") ->  | E42: sec.
A44: CPT-2 平均反応時間 | C44: SRT | D44: =IF(Input!D27<>"",Input!D27,"") ->  | E44: msec.
C45: X | D45: =IF(Input!D28<>"",Input!D28,"") ->  | E45: msec.
C46: AX | D46: =IF(Input!D29<>"",Input!D29,"") ->  | E46: msec.
A48: CPT-2 誤反応 | C48: SRT | D48: =IF(Input!D30<>"",Input!D30,"") ->  | E48: 回 | H48: =IF(D48="","",IF(ISNUMBER(D48)=FALSE,"",(IF(D48>=4,"異常","正常")))) -> 
C49: X | D49: =IF(Input!D31<>"",Input!D31,"") ->  | E49: 回 | H49: =IF(D49="","",IF(ISNUMBER(D49)=FALSE,"",(IF(D49>=10,"異常","正常")))) -> 
C50: AX | D50: =IF(Input!D32<>"",Input!D32,"") ->  | E50: 回 | H50: =IF(D50="","",IF(ISNUMBER(D50)=FALSE,"",(IF(D50>=11,"異常","正常")))) -> 

Sheet Graph選（60歳代）
A1: CAT-R プロフィール | F1: 健常例60歳代
E2: ID | F2: =IF(Input!C2<>"",Input!C2,"") ->  | G2: 検査 | H2: =IF(Input!F3<>"",Input!F3,"") -> 
A3: 実施日 | C3: =IF(Input!F2<>"",Input!F2,"") ->  | E3: 氏名 | F3: =IF(Input!C3<>"",Input!C3,"") ->  | G3: 様 | H3: =IF(Input!C4<>"",Input!C4,"") -> 
F4: 平均± | G4: 1 | H4: 標準偏差
A5: Digit Span | C5: forward | D5: =IF(Input!D5<>"",Input!D5,"") ->  | E5: 桁
C6: backward | D6: =IF(Input!D6<>"",Input!D6,"") ->  | E6: 桁
A8: Tapping Span | C8: forward | D8: =IF(Input!D7<>"",Input!D7,"") ->  | E8: 桁
C9: backward | D9: =IF(Input!D8<>"",Input!D8,"") ->  | E9: 桁
A11: Visual Cancellation Ⓐ 図形△ | C11: 正答率 | D11: =IF(Input!D10<>"",Input!D10,"") ->  | E11: ％
C12: 的中率 | D12: =IF(Input!D11<>"",Input!D11,"") ->  | E12: ％
A14: Visual Cancellation Ⓑ 図形※ | C14: 正答率 | D14: =IF(Input!D13<>"",Input!D13,"") ->  | E14: ％
C15: 的中率 | D15: =IF(Input!D14<>"",Input!D14,"") ->  | E15: ％
A17: Visual Cancellation Ⓒ 数字 3 | C17: 正答率 | D17: =IF(Input!D16<>"",Input!D16,"") ->  | E17: ％
C18: 的中率 | D18: =IF(Input!D17<>"",Input!D17,"") ->  | E18: ％
A20: Visual Cancellation Ⓓ 仮名 か | C20: 正答率 | D20: =IF(Input!D19<>"",Input!D19,"") ->  | E20: ％
C21: 的中率 | D21: =IF(Input!D20<>"",Input!D20,"") ->  | E21: ％
A23: Auditory Detection | C23: 正答率 | D23: =IF(Input!D21<>"",Input!D21,"") ->  | E23: ％
C24: 的中率 | D24: =IF(Input!D22<>"",Input!D22,"") ->  | E24: ％
A26: Memory Updating | C26: 3スパン 正答率 | D26: =IF(Input!D23<>"",Input!D23,"") ->  | E26: ％
C27: 4スパン 正答率 | D27: =IF(Input!D24<>"",Input!D24,"") ->  | E27: ％
A29: PASAT | C29: 2秒条件 正答率 | D29: =IF(Input!D25<>"",Input!D25,"") ->  | E29: ％
C30: 1秒条件 正答率 | D30: =IF(Input!D26<>"",Input!D26,"") ->  | E30: ％
A32: CPT-2 正答率 | C32: SRT | D32: =IF(Input!D33<>"",Input!D33,"") ->  | E32: ％
C33: X | D33: =IF(Input!D34<>"",Input!D34,"") ->  | E33: ％
C34: AX | D34: =IF(Input!D35<>"",Input!D35,"") ->  | E34: ％
A36: Visual Cancellation 所要時間 | C36: Ⓐ 図形△ | D36: =IF(Input!D9<>"",Input!D9,"") ->  | E36: sec.
C38: Ⓑ 図形※ | D38: =IF(Input!D12<>"",Input!D12,"") ->  | E38: sec.
C40: Ⓒ 数字 3 | D40: =IF(Input!D15<>"",Input!D15,"") ->  | E40: sec.
C42: Ⓓ 仮名 か | D42: =IF(Input!D18<>"",Input!D18,"") ->  | E42: sec.
A44: CPT-2 平均反応時間 | C44: SRT | D44: =IF(Input!D27<>"",Input!D27,"") ->  | E44: msec.
C45: X | D45: =IF(Input!D28<>"",Input!D28,"") ->  | E45: msec.
C46: AX | D46: =IF(Input!D29<>"",Input!D29,"") ->  | E46: msec.
A48: CPT-2 誤反応 | C48: SRT | D48: =IF(Input!D30<>"",Input!D30,"") ->  | E48: 回 | H48: =IF(D48="","",IF(ISNUMBER(D48)=FALSE,"",(IF(D48>=4,"異常","正常")))) -> 
C49: X | D49: =IF(Input!D31<>"",Input!D31,"") ->  | E49: 回 | H49: =IF(D49="","",IF(ISNUMBER(D49)=FALSE,"",(IF(D49>=10,"異常","正常")))) -> 
C50: AX | D50: =IF(Input!D32<>"",Input!D32,"") ->  | E50: 回 | H50: =IF(D50="","",IF(ISNUMBER(D50)=FALSE,"",(IF(D50>=11,"異常","正常")))) -> 

Sheet Graph選（70歳代）
A1: CAT-R プロフィール | F1: 健常例70歳代
E2: ID | F2: =IF(Input!C2<>"",Input!C2,"") ->  | G2: 検査 | H2: =IF(Input!F3<>"",Input!F3,"") -> 
A3: 実施日 | C3: =IF(Input!F2<>"",Input!F2,"") ->  | E3: 氏名 | F3: =IF(Input!C3<>"",Input!C3,"") ->  | G3: 様 | H3: =IF(Input!C4<>"",Input!C4,"") -> 
F4: 平均± | G4: 1 | H4: 標準偏差
A5: Digit Span | C5: forward | D5: =IF(Input!D5<>"",Input!D5,"") ->  | E5: 桁
C6: backward | D6: =IF(Input!D6<>"",Input!D6,"") ->  | E6: 桁
A8: Tapping Span | C8: forward | D8: =IF(Input!D7<>"",Input!D7,"") ->  | E8: 桁
C9: backward | D9: =IF(Input!D8<>"",Input!D8,"") ->  | E9: 桁
A11: Visual Cancellation Ⓐ 図形△ | C11: 正答率 | D11: =IF(Input!D10<>"",Input!D10,"") ->  | E11: ％
C12: 的中率 | D12: =IF(Input!D11<>"",Input!D11,"") ->  | E12: ％
A14: Visual Cancellation Ⓑ 図形※ | C14: 正答率 | D14: =IF(Input!D13<>"",Input!D13,"") ->  | E14: ％
C15: 的中率 | D15: =IF(Input!D14<>"",Input!D14,"") ->  | E15: ％
A17: Visual Cancellation Ⓒ 数字 3 | C17: 正答率 | D17: =IF(Input!D16<>"",Input!D16,"") ->  | E17: ％
C18: 的中率 | D18: =IF(Input!D17<>"",Input!D17,"") ->  | E18: ％
A20: Visual Cancellation Ⓓ 仮名 か | C20: 正答率 | D20: =IF(Input!D19<>"",Input!D19,"") ->  | E20: ％
C21: 的中率 | D21: =IF(Input!D20<>"",Input!D20,"") ->  | E21: ％
A23: Auditory Detection | C23: 正答率 | D23: =IF(Input!D21<>"",Input!D21,"") ->  | E23: ％
C24: 的中率 | D24: =IF(Input!D22<>"",Input!D22,"") ->  | E24: ％
A26: Memory Updating | C26: 3スパン 正答率 | D26: =IF(Input!D23<>"",Input!D23,"") ->  | E26: ％
C27: 4スパン 正答率 | D27: =IF(Input!D24<>"",Input!D24,"") ->  | E27: ％
A29: PASAT | C29: 2秒条件 正答率 | D29: =IF(Input!D25<>"",Input!D25,"") ->  | E29: ％
C30: 1秒条件 正答率 | D30: =IF(Input!D26<>"",Input!D26,"") ->  | E30: ％
A32: CPT-2 正答率 | C32: SRT | D32: =IF(Input!D33<>"",Input!D33,"") ->  | E32: ％
C33: X | D33: =IF(Input!D34<>"",Input!D34,"") ->  | E33: ％
C34: AX | D34: =IF(Input!D35<>"",Input!D35,"") ->  | E34: ％
A36: Visual Cancellation 所要時間 | C36: Ⓐ 図形△ | D36: =IF(Input!D9<>"",Input!D9,"") ->  | E36: sec.
C38: Ⓑ 図形※ | D38: =IF(Input!D12<>"",Input!D12,"") ->  | E38: sec.
C40: Ⓒ 数字 3 | D40: =IF(Input!D15<>"",Input!D15,"") ->  | E40: sec.
C42: Ⓓ 仮名 か | D42: =IF(Input!D18<>"",Input!D18,"") ->  | E42: sec.
A44: CPT-2 平均反応時間 | C44: SRT | D44: =IF(Input!D27<>"",Input!D27,"") ->  | E44: msec.
C45: X | D45: =IF(Input!D28<>"",Input!D28,"") ->  | E45: msec.
C46: AX | D46: =IF(Input!D29<>"",Input!D29,"") ->  | E46: msec.
A48: CPT-2 誤反応 | C48: SRT | D48: =IF(Input!D30<>"",Input!D30,"") ->  | E48: 回 | H48: =IF(D48="","",IF(ISNUMBER(D48)=FALSE,"",(IF(D48>=4,"異常","正常")))) -> 
C49: X | D49: =IF(Input!D31<>"",Input!D31,"") ->  | E49: 回 | H49: =IF(D49="","",IF(ISNUMBER(D49)=FALSE,"",(IF(D49>=10,"異常","正常")))) -> 
C50: AX | D50: =IF(Input!D32<>"",Input!D32,"") ->  | E50: 回 | H50: =IF(D50="","",IF(ISNUMBER(D50)=FALSE,"",(IF(D50>=11,"異常","正常")))) -> 

Sheet Graph（20歳代）
A1: CAT-R 全プロフィール | F1: 健常例20歳代
E2: ID | F2: =IF(Input!C2<>"",Input!C2,"") ->  | G2: 検査 | H2: =IF(Input!F3<>"",Input!F3,"") -> 
A3: 実施日 | C3: =IF(Input!F2<>"",Input!F2,"") ->  | E3: 氏名 | F3: =IF(Input!C3<>"",Input!C3,"") ->  | G3: 様 | H3: =IF(Input!C4<>"",Input!C4,"") -> 
F4: 平均± | G4: 1 | H4: 標準偏差
A5: Digit Span | C5: forward | D5: =IF(Input!D5<>"",Input!D5,"") ->  | E5: 桁
C6: backward | D6: =IF(Input!D6<>"",Input!D6,"") ->  | E6: 桁
A8: Tapping Span | C8: forward | D8: =IF(Input!D7<>"",Input!D7,"") ->  | E8: 桁
C9: backward | D9: =IF(Input!D8<>"",Input!D8,"") ->  | E9: 桁
A11: Visual Cancellation Ⓐ 図形△ | C11: 正答率 | D11: =IF(Input!D10<>"",Input!D10,"") ->  | E11: ％
C12: 的中率 | D12: =IF(Input!D11<>"",Input!D11,"") ->  | E12: ％
A14: Visual Cancellation Ⓑ 図形※ | C14: 正答率 | D14: =IF(Input!D13<>"",Input!D13,"") ->  | E14: ％
C15: 的中率 | D15: =IF(Input!D14<>"",Input!D14,"") ->  | E15: ％
A17: Visual Cancellation Ⓒ 数字 3 | C17: 正答率 | D17: =IF(Input!D16<>"",Input!D16,"") ->  | E17: ％
C18: 的中率 | D18: =IF(Input!D17<>"",Input!D17,"") ->  | E18: ％
A20: Visual Cancellation Ⓓ 仮名 か | C20: 正答率 | D20: =IF(Input!D19<>"",Input!D19,"") ->  | E20: ％
C21: 的中率 | D21: =IF(Input!D20<>"",Input!D20,"") ->  | E21: ％
A23: Auditory Detection | C23: 正答率 | D23: =IF(Input!D21<>"",Input!D21,"") ->  | E23: ％
C24: 的中率 | D24: =IF(Input!D22<>"",Input!D22,"") ->  | E24: ％
A26: Memory Updating | C26: 3スパン 正答率 | D26: =IF(Input!D23<>"",Input!D23,"") ->  | E26: ％
C27: 4スパン 正答率 | D27: =IF(Input!D24<>"",Input!D24,"") ->  | E27: ％
A29: PASAT | C29: 2秒条件 正答率 | D29: =IF(Input!D25<>"",Input!D25,"") ->  | E29: ％
C30: 1秒条件 正答率 | D30: =IF(Input!D26<>"",Input!D26,"") ->  | E30: ％
A32: CPT-2 正答率 | C32: SRT | D32: =IF(Input!D33<>"",Input!D33,"") ->  | E32: ％
C33: X | D33: =IF(Input!D34<>"",Input!D34,"") ->  | E33: ％
C34: AX | D34: =IF(Input!D35<>"",Input!D35,"") ->  | E34: ％
A36: CPT-2 的中率 | C36: SRT | D36: =IF(Input!D36<>"",Input!D36,"") ->  | E36: ％
C37: X | D37: =IF(Input!D37<>"",Input!D37,"") ->  | E37: ％
C38: AX | D38: =IF(Input!D38<>"",Input!D38,"") ->  | E38: ％
A40: CPT-2 修正正答率 | C40: SRT | D40: =IF(Input!D39<>"",Input!D39,"") ->  | E40: ％
C41: X | D41: =IF(Input!D40<>"",Input!D40,"") ->  | E41: ％
C42: AX | D42: =IF(Input!D41<>"",Input!D41,"") ->  | E42: ％
A44: Visual Cancellation 所要時間 | C44: Ⓐ 図形△ | D44: =IF(Input!D9<>"",Input!D9,"") ->  | E44: sec.
C46: Ⓑ 図形※ | D46: =IF(Input!D12<>"",Input!D12,"") ->  | E46: sec.
C48: Ⓒ 数字 3 | D48: =IF(Input!D15<>"",Input!D15,"") ->  | E48: sec.
C50: Ⓓ 仮名 か | D50: =IF(Input!D18<>"",Input!D18,"") ->  | E50: sec.
A52: CPT-2 平均反応時間 | C52: SRT | D52: =IF(Input!D27<>"",Input!D27,"") ->  | E52: msec.
C53: X | D53: =IF(Input!D28<>"",Input!D28,"") ->  | E53: msec.
C54: AX | D54: =IF(Input!D29<>"",Input!D29,"") ->  | E54: msec.
A56: CPT-2 誤反応 | C56: SRT | D56: =IF(Input!D30<>"",Input!D30,"") ->  | E56: 回 | H56: =IF(D56="","",IF(ISNUMBER(D56)=FALSE,"",(IF(D56>=4,"異常","正常")))) -> 
C57: X | D57: =IF(Input!D31<>"",Input!D31,"") ->  | E57: 回 | H57: =IF(D57="","",IF(ISNUMBER(D57)=FALSE,"",(IF(D57>=10,"異常","正常")))) -> 
C58: AX | D58: =IF(Input!D32<>"",Input!D32,"") ->  | E58: 回 | H58: =IF(D58="","",IF(ISNUMBER(D58)=FALSE,"",(IF(D58>=11,"異常","正常")))) -> 
A60: CPT-2 変動係数 | C60: SRT | D60: =IF(Input!D42<>"",Input!D42,"") -> 
C61: X | D61: =IF(Input!D43<>"",Input!D43,"") -> 
C62: AX | D62: =IF(Input!D44<>"",Input!D44,"") -> 

Sheet Graph（30歳代）
A1: CAT-R 全プロフィール | F1: 健常例30歳代
E2: ID | F2: =IF(Input!C2<>"",Input!C2,"") ->  | G2: 検査 | H2: =IF(Input!F3<>"",Input!F3,"") -> 
A3: 実施日 | C3: =IF(Input!F2<>"",Input!F2,"") ->  | E3: 氏名 | F3: =IF(Input!C3<>"",Input!C3,"") ->  | G3: 様 | H3: =IF(Input!C4<>"",Input!C4,"") -> 
F4: 平均± | G4: 1 | H4: 標準偏差
A5: Digit Span | C5: forward | D5: =IF(Input!D5<>"",Input!D5,"") ->  | E5: 桁
C6: backward | D6: =IF(Input!D6<>"",Input!D6,"") ->  | E6: 桁
A8: Tapping Span | C8: forward | D8: =IF(Input!D7<>"",Input!D7,"") ->  | E8: 桁
C9: backward | D9: =IF(Input!D8<>"",Input!D8,"") ->  | E9: 桁
A11: Visual Cancellation Ⓐ 図形△ | C11: 正答率 | D11: =IF(Input!D10<>"",Input!D10,"") ->  | E11: ％
C12: 的中率 | D12: =IF(Input!D11<>"",Input!D11,"") ->  | E12: ％
A14: Visual Cancellation Ⓑ 図形※ | C14: 正答率 | D14: =IF(Input!D13<>"",Input!D13,"") ->  | E14: ％
C15: 的中率 | D15: =IF(Input!D14<>"",Input!D14,"") ->  | E15: ％
A17: Visual Cancellation Ⓒ 数字 3 | C17: 正答率 | D17: =IF(Input!D16<>"",Input!D16,"") ->  | E17: ％
C18: 的中率 | D18: =IF(Input!D17<>"",Input!D17,"") ->  | E18: ％
A20: Visual Cancellation Ⓓ 仮名 か | C20: 正答率 | D20: =IF(Input!D19<>"",Input!D19,"") ->  | E20: ％
C21: 的中率 | D21: =IF(Input!D20<>"",Input!D20,"") ->  | E21: ％
A23: Auditory Detection | C23: 正答率 | D23: =IF(Input!D21<>"",Input!D21,"") ->  | E23: ％
C24: 的中率 | D24: =IF(Input!D22<>"",Input!D22,"") ->  | E24: ％
A26: Memory Updating | C26: 3スパン 正答率 | D26: =IF(Input!D23<>"",Input!D23,"") ->  | E26: ％
C27: 4スパン 正答率 | D27: =IF(Input!D24<>"",Input!D24,"") ->  | E27: ％
A29: PASAT | C29: 2秒条件 正答率 | D29: =IF(Input!D25<>"",Input!D25,"") ->  | E29: ％
C30: 1秒条件 正答率 | D30: =IF(Input!D26<>"",Input!D26,"") ->  | E30: ％
A32: CPT-2 正答率 | C32: SRT | D32: =IF(Input!D33<>"",Input!D33,"") ->  | E32: ％
C33: X | D33: =IF(Input!D34<>"",Input!D34,"") ->  | E33: ％
C34: AX | D34: =IF(Input!D35<>"",Input!D35,"") ->  | E34: ％
A36: CPT-2 的中率 | C36: SRT | D36: =IF(Input!D36<>"",Input!D36,"") ->  | E36: ％
C37: X | D37: =IF(Input!D37<>"",Input!D37,"") ->  | E37: ％
C38: AX | D38: =IF(Input!D38<>"",Input!D38,"") ->  | E38: ％
A40: CPT-2 修正正答率 | C40: SRT | D40: =IF(Input!D39<>"",Input!D39,"") ->  | E40: ％
C41: X | D41: =IF(Input!D40<>"",Input!D40,"") ->  | E41: ％
C42: AX | D42: =IF(Input!D41<>"",Input!D41,"") ->  | E42: ％
A44: Visual Cancellation 所要時間 | C44: Ⓐ 図形△ | D44: =IF(Input!D9<>"",Input!D9,"") ->  | E44: sec.
C46: Ⓑ 図形※ | D46: =IF(Input!D12<>"",Input!D12,"") ->  | E46: sec.
C48: Ⓒ 数字 3 | D48: =IF(Input!D15<>"",Input!D15,"") ->  | E48: sec.
C50: Ⓓ 仮名 か | D50: =IF(Input!D18<>"",Input!D18,"") ->  | E50: sec.
A52: CPT-2 平均反応時間 | C52: SRT | D52: =IF(Input!D27<>"",Input!D27,"") ->  | E52: msec.
C53: X | D53: =IF(Input!D28<>"",Input!D28,"") ->  | E53: msec.
C54: AX | D54: =IF(Input!D29<>"",Input!D29,"") ->  | E54: msec.
A56: CPT-2 誤反応 | C56: SRT | D56: =IF(Input!D30<>"",Input!D30,"") ->  | E56: 回 | H56: =IF(D56="","",IF(ISNUMBER(D56)=FALSE,"",(IF(D56>=4,"異常","正常")))) -> 
C57: X | D57: =IF(Input!D31<>"",Input!D31,"") ->  | E57: 回 | H57: =IF(D57="","",IF(ISNUMBER(D57)=FALSE,"",(IF(D57>=10,"異常","正常")))) -> 
C58: AX | D58: =IF(Input!D32<>"",Input!D32,"") ->  | E58: 回 | H58: =IF(D58="","",IF(ISNUMBER(D58)=FALSE,"",(IF(D58>=11,"異常","正常")))) -> 
A60: CPT-2 変動係数 | C60: SRT | D60: =IF(Input!D42<>"",Input!D42,"") -> 
C61: X | D61: =IF(Input!D43<>"",Input!D43,"") -> 
C62: AX | D62: =IF(Input!D44<>"",Input!D44,"") -> 

Sheet Graph（40歳代）
A1: CAT-R 全プロフィール | F1: 健常例40歳代
E2: ID | F2: =IF(Input!C2<>"",Input!C2,"") ->  | G2: 検査 | H2: =IF(Input!F3<>"",Input!F3,"") -> 
A3: 実施日 | C3: =IF(Input!F2<>"",Input!F2,"") ->  | E3: 氏名 | F3: =IF(Input!C3<>"",Input!C3,"") ->  | G3: 様 | H3: =IF(Input!C4<>"",Input!C4,"") -> 
F4: 平均± | G4: 1 | H4: 標準偏差
A5: Digit Span | C5: forward | D5: =IF(Input!D5<>"",Input!D5,"") ->  | E5: 桁
C6: backward | D6: =IF(Input!D6<>"",Input!D6,"") ->  | E6: 桁
A8: Tapping Span | C8: forward | D8: =IF(Input!D7<>"",Input!D7,"") ->  | E8: 桁
C9: backward | D9: =IF(Input!D8<>"",Input!D8,"") ->  | E9: 桁
A11: Visual Cancellation Ⓐ 図形△ | C11: 正答率 | D11: =IF(Input!D10<>"",Input!D10,"") ->  | E11: ％
C12: 的中率 | D12: =IF(Input!D11<>"",Input!D11,"") ->  | E12: ％
A14: Visual Cancellation Ⓑ 図形※ | C14: 正答率 | D14: =IF(Input!D13<>"",Input!D13,"") ->  | E14: ％
C15: 的中率 | D15: =IF(Input!D14<>"",Input!D14,"") ->  | E15: ％
A17: Visual Cancellation Ⓒ 数字 3 | C17: 正答率 | D17: =IF(Input!D16<>"",Input!D16,"") ->  | E17: ％
C18: 的中率 | D18: =IF(Input!D17<>"",Input!D17,"") ->  | E18: ％
A20: Visual Cancellation Ⓓ 仮名 か | C20: 正答率 | D20: =IF(Input!D19<>"",Input!D19,"") ->  | E20: ％
C21: 的中率 | D21: =IF(Input!D20<>"",Input!D20,"") ->  | E21: ％
A23: Auditory Detection | C23: 正答率 | D23: =IF(Input!D21<>"",Input!D21,"") ->  | E23: ％
C24: 的中率 | D24: =IF(Input!D22<>"",Input!D22,"") ->  | E24: ％
A26: Memory Updating | C26: 3スパン 正答率 | D26: =IF(Input!D23<>"",Input!D23,"") ->  | E26: ％
C27: 4スパン 正答率 | D27: =IF(Input!D24<>"",Input!D24,"") ->  | E27: ％
A29: PASAT | C29: 2秒条件 正答率 | D29: =IF(Input!D25<>"",Input!D25,"") ->  | E29: ％
C30: 1秒条件 正答率 | D30: =IF(Input!D26<>"",Input!D26,"") ->  | E30: ％
A32: CPT-2 正答率 | C32: SRT | D32: =IF(Input!D33<>"",Input!D33,"") ->  | E32: ％
C33: X | D33: =IF(Input!D34<>"",Input!D34,"") ->  | E33: ％
C34: AX | D34: =IF(Input!D35<>"",Input!D35,"") ->  | E34: ％
A36: CPT-2 的中率 | C36: SRT | D36: =IF(Input!D36<>"",Input!D36,"") ->  | E36: ％
C37: X | D37: =IF(Input!D37<>"",Input!D37,"") ->  | E37: ％
C38: AX | D38: =IF(Input!D38<>"",Input!D38,"") ->  | E38: ％
A40: CPT-2 修正正答率 | C40: SRT | D40: =IF(Input!D39<>"",Input!D39,"") ->  | E40: ％
C41: X | D41: =IF(Input!D40<>"",Input!D40,"") ->  | E41: ％
C42: AX | D42: =IF(Input!D41<>"",Input!D41,"") ->  | E42: ％
A44: Visual Cancellation 所要時間 | C44: Ⓐ 図形△ | D44: =IF(Input!D9<>"",Input!D9,"") ->  | E44: sec.
C46: Ⓑ 図形※ | D46: =IF(Input!D12<>"",Input!D12,"") ->  | E46: sec.
C48: Ⓒ 数字 3 | D48: =IF(Input!D15<>"",Input!D15,"") ->  | E48: sec.
C50: Ⓓ 仮名 か | D50: =IF(Input!D18<>"",Input!D18,"") ->  | E50: sec.
A52: CPT-2 平均反応時間 | C52: SRT | D52: =IF(Input!D27<>"",Input!D27,"") ->  | E52: msec.
C53: X | D53: =IF(Input!D28<>"",Input!D28,"") ->  | E53: msec.
C54: AX | D54: =IF(Input!D29<>"",Input!D29,"") ->  | E54: msec.
A56: CPT-2 誤反応 | C56: SRT | D56: =IF(Input!D30<>"",Input!D30,"") ->  | E56: 回 | H56: =IF(D56="","",IF(ISNUMBER(D56)=FALSE,"",(IF(D56>=4,"異常","正常")))) -> 
C57: X | D57: =IF(Input!D31<>"",Input!D31,"") ->  | E57: 回 | H57: =IF(D57="","",IF(ISNUMBER(D57)=FALSE,"",(IF(D57>=10,"異常","正常")))) -> 
C58: AX | D58: =IF(Input!D32<>"",Input!D32,"") ->  | E58: 回 | H58: =IF(D58="","",IF(ISNUMBER(D58)=FALSE,"",(IF(D58>=11,"異常","正常")))) -> 
A60: CPT-2 変動係数 | C60: SRT | D60: =IF(Input!D42<>"",Input!D42,"") -> 
C61: X | D61: =IF(Input!D43<>"",Input!D43,"") -> 
C62: AX | D62: =IF(Input!D44<>"",Input!D44,"") -> 

Sheet Graph（50歳代）
A1: CAT-R 全プロフィール | F1: 健常例50歳代
E2: ID | F2: =IF(Input!C2<>"",Input!C2,"") ->  | G2: 検査 | H2: =IF(Input!F3<>"",Input!F3,"") -> 
A3: 実施日 | C3: =IF(Input!F2<>"",Input!F2,"") ->  | E3: 氏名 | F3: =IF(Input!C3<>"",Input!C3,"") ->  | G3: 様 | H3: =IF(Input!C4<>"",Input!C4,"") -> 
F4: 平均± | G4: 1 | H4: 標準偏差
A5: Digit Span | C5: forward | D5: =IF(Input!D5<>"",Input!D5,"") ->  | E5: 桁
C6: backward | D6: =IF(Input!D6<>"",Input!D6,"") ->  | E6: 桁
A8: Tapping Span | C8: forward | D8: =IF(Input!D7<>"",Input!D7,"") ->  | E8: 桁
C9: backward | D9: =IF(Input!D8<>"",Input!D8,"") ->  | E9: 桁
A11: Visual Cancellation Ⓐ 図形△ | C11: 正答率 | D11: =IF(Input!D10<>"",Input!D10,"") ->  | E11: ％
C12: 的中率 | D12: =IF(Input!D11<>"",Input!D11,"") ->  | E12: ％
A14: Visual Cancellation Ⓑ 図形※ | C14: 正答率 | D14: =IF(Input!D13<>"",Input!D13,"") ->  | E14: ％
C15: 的中率 | D15: =IF(Input!D14<>"",Input!D14,"") ->  | E15: ％
A17: Visual Cancellation Ⓒ 数字 3 | C17: 正答率 | D17: =IF(Input!D16<>"",Input!D16,"") ->  | E17: ％
C18: 的中率 | D18: =IF(Input!D17<>"",Input!D17,"") ->  | E18: ％
A20: Visual Cancellation Ⓓ 仮名 か | C20: 正答率 | D20: =IF(Input!D19<>"",Input!D19,"") ->  | E20: ％
C21: 的中率 | D21: =IF(Input!D20<>"",Input!D20,"") ->  | E21: ％
A23: Auditory Detection | C23: 正答率 | D23: =IF(Input!D21<>"",Input!D21,"") ->  | E23: ％
C24: 的中率 | D24: =IF(Input!D22<>"",Input!D22,"") ->  | E24: ％
A26: Memory Updating | C26: 3スパン 正答率 | D26: =IF(Input!D23<>"",Input!D23,"") ->  | E26: ％
C27: 4スパン 正答率 | D27: =IF(Input!D24<>"",Input!D24,"") ->  | E27: ％
A29: PASAT | C29: 2秒条件 正答率 | D29: =IF(Input!D25<>"",Input!D25,"") ->  | E29: ％
C30: 1秒条件 正答率 | D30: =IF(Input!D26<>"",Input!D26,"") ->  | E30: ％
A32: CPT-2 正答率 | C32: SRT | D32: =IF(Input!D33<>"",Input!D33,"") ->  | E32: ％
C33: X | D33: =IF(Input!D34<>"",Input!D34,"") ->  | E33: ％
C34: AX | D34: =IF(Input!D35<>"",Input!D35,"") ->  | E34: ％
A36: CPT-2 的中率 | C36: SRT | D36: =IF(Input!D36<>"",Input!D36,"") ->  | E36: ％
C37: X | D37: =IF(Input!D37<>"",Input!D37,"") ->  | E37: ％
C38: AX | D38: =IF(Input!D38<>"",Input!D38,"") ->  | E38: ％
A40: CPT-2 修正正答率 | C40: SRT | D40: =IF(Input!D39<>"",Input!D39,"") ->  | E40: ％
C41: X | D41: =IF(Input!D40<>"",Input!D40,"") ->  | E41: ％
C42: AX | D42: =IF(Input!D41<>"",Input!D41,"") ->  | E42: ％
A44: Visual Cancellation 所要時間 | C44: Ⓐ 図形△ | D44: =IF(Input!D9<>"",Input!D9,"") ->  | E44: sec.
C46: Ⓑ 図形※ | D46: =IF(Input!D12<>"",Input!D12,"") ->  | E46: sec.
C48: Ⓒ 数字 3 | D48: =IF(Input!D15<>"",Input!D15,"") ->  | E48: sec.
C50: Ⓓ 仮名 か | D50: =IF(Input!D18<>"",Input!D18,"") ->  | E50: sec.
A52: CPT-2 平均反応時間 | C52: SRT | D52: =IF(Input!D27<>"",Input!D27,"") ->  | E52: msec.
C53: X | D53: =IF(Input!D28<>"",Input!D28,"") ->  | E53: msec.
C54: AX | D54: =IF(Input!D29<>"",Input!D29,"") ->  | E54: msec.
A56: CPT-2 誤反応 | C56: SRT | D56: =IF(Input!D30<>"",Input!D30,"") ->  | E56: 回 | H56: =IF(D56="","",IF(ISNUMBER(D56)=FALSE,"",(IF(D56>=4,"異常","正常")))) -> 
C57: X | D57: =IF(Input!D31<>"",Input!D31,"") ->  | E57: 回 | H57: =IF(D57="","",IF(ISNUMBER(D57)=FALSE,"",(IF(D57>=10,"異常","正常")))) -> 
C58: AX | D58: =IF(Input!D32<>"",Input!D32,"") ->  | E58: 回 | H58: =IF(D58="","",IF(ISNUMBER(D58)=FALSE,"",(IF(D58>=11,"異常","正常")))) -> 
A60: CPT-2 変動係数 | C60: SRT | D60: =IF(Input!D42<>"",Input!D42,"") -> 
C61: X | D61: =IF(Input!D43<>"",Input!D43,"") -> 
C62: AX | D62: =IF(Input!D44<>"",Input!D44,"") -> 

Sheet Graph（60歳代）
A1: CAT-R 全プロフィール | F1: 健常例60歳代
E2: ID | F2: =IF(Input!C2<>"",Input!C2,"") ->  | G2: 検査 | H2: =IF(Input!F3<>"",Input!F3,"") -> 
A3: 実施日 | C3: =IF(Input!F2<>"",Input!F2,"") ->  | E3: 氏名 | F3: =IF(Input!C3<>"",Input!C3,"") ->  | G3: 様 | H3: =IF(Input!C4<>"",Input!C4,"") -> 
F4: 平均± | G4: 1 | H4: 標準偏差
A5: Digit Span | C5: forward | D5: =IF(Input!D5<>"",Input!D5,"") ->  | E5: 桁
C6: backward | D6: =IF(Input!D6<>"",Input!D6,"") ->  | E6: 桁
A8: Tapping Span | C8: forward | D8: =IF(Input!D7<>"",Input!D7,"") ->  | E8: 桁
C9: backward | D9: =IF(Input!D8<>"",Input!D8,"") ->  | E9: 桁
A11: Visual Cancellation Ⓐ 図形△ | C11: 正答率 | D11: =IF(Input!D10<>"",Input!D10,"") ->  | E11: ％
C12: 的中率 | D12: =IF(Input!D11<>"",Input!D11,"") ->  | E12: ％
A14: Visual Cancellation Ⓑ 図形※ | C14: 正答率 | D14: =IF(Input!D13<>"",Input!D13,"") ->  | E14: ％
C15: 的中率 | D15: =IF(Input!D14<>"",Input!D14,"") ->  | E15: ％
A17: Visual Cancellation Ⓒ 数字 3 | C17: 正答率 | D17: =IF(Input!D16<>"",Input!D16,"") ->  | E17: ％
C18: 的中率 | D18: =IF(Input!D17<>"",Input!D17,"") ->  | E18: ％
A20: Visual Cancellation Ⓓ 仮名 か | C20: 正答率 | D20: =IF(Input!D19<>"",Input!D19,"") ->  | E20: ％
C21: 的中率 | D21: =IF(Input!D20<>"",Input!D20,"") ->  | E21: ％
A23: Auditory Detection | C23: 正答率 | D23: =IF(Input!D21<>"",Input!D21,"") ->  | E23: ％
C24: 的中率 | D24: =IF(Input!D22<>"",Input!D22,"") ->  | E24: ％
A26: Memory Updating | C26: 3スパン 正答率 | D26: =IF(Input!D23<>"",Input!D23,"") ->  | E26: ％
C27: 4スパン 正答率 | D27: =IF(Input!D24<>"",Input!D24,"") ->  | E27: ％
A29: PASAT | C29: 2秒条件 正答率 | D29: =IF(Input!D25<>"",Input!D25,"") ->  | E29: ％
C30: 1秒条件 正答率 | D30: =IF(Input!D26<>"",Input!D26,"") ->  | E30: ％
A32: CPT-2 正答率 | C32: SRT | D32: =IF(Input!D33<>"",Input!D33,"") ->  | E32: ％
C33: X | D33: =IF(Input!D34<>"",Input!D34,"") ->  | E33: ％
C34: AX | D34: =IF(Input!D35<>"",Input!D35,"") ->  | E34: ％
A36: CPT-2 的中率 | C36: SRT | D36: =IF(Input!D36<>"",Input!D36,"") ->  | E36: ％
C37: X | D37: =IF(Input!D37<>"",Input!D37,"") ->  | E37: ％
C38: AX | D38: =IF(Input!D38<>"",Input!D38,"") ->  | E38: ％
A40: CPT-2 修正正答率 | C40: SRT | D40: =IF(Input!D39<>"",Input!D39,"") ->  | E40: ％
C41: X | D41: =IF(Input!D40<>"",Input!D40,"") ->  | E41: ％
C42: AX | D42: =IF(Input!D41<>"",Input!D41,"") ->  | E42: ％
A44: Visual Cancellation 所要時間 | C44: Ⓐ 図形△ | D44: =IF(Input!D9<>"",Input!D9,"") ->  | E44: sec.
C46: Ⓑ 図形※ | D46: =IF(Input!D12<>"",Input!D12,"") ->  | E46: sec.
C48: Ⓒ 数字 3 | D48: =IF(Input!D15<>"",Input!D15,"") ->  | E48: sec.
C50: Ⓓ 仮名 か | D50: =IF(Input!D18<>"",Input!D18,"") ->  | E50: sec.
A52: CPT-2 平均反応時間 | C52: SRT | D52: =IF(Input!D27<>"",Input!D27,"") ->  | E52: msec.
C53: X | D53: =IF(Input!D28<>"",Input!D28,"") ->  | E53: msec.
C54: AX | D54: =IF(Input!D29<>"",Input!D29,"") ->  | E54: msec.
A56: CPT-2 誤反応 | C56: SRT | D56: =IF(Input!D30<>"",Input!D30,"") ->  | E56: 回 | H56: =IF(D56="","",IF(ISNUMBER(D56)=FALSE,"",(IF(D56>=4,"異常","正常")))) -> 
C57: X | D57: =IF(Input!D31<>"",Input!D31,"") ->  | E57: 回 | H57: =IF(D57="","",IF(ISNUMBER(D57)=FALSE,"",(IF(D57>=10,"異常","正常")))) -> 
C58: AX | D58: =IF(Input!D32<>"",Input!D32,"") ->  | E58: 回 | H58: =IF(D58="","",IF(ISNUMBER(D58)=FALSE,"",(IF(D58>=11,"異常","正常")))) -> 
A60: CPT-2 変動係数 | C60: SRT | D60: =IF(Input!D42<>"",Input!D42,"") -> 
C61: X | D61: =IF(Input!D43<>"",Input!D43,"") -> 
C62: AX | D62: =IF(Input!D44<>"",Input!D44,"") -> 

Sheet Graph（70歳代）
A1: CAT-R 全プロフィール | F1: 健常例70歳代
E2: ID | F2: =IF(Input!C2<>"",Input!C2,"") ->  | G2: 検査 | H2: =IF(Input!F3<>"",Input!F3,"") -> 
A3: 実施日 | C3: =IF(Input!F2<>"",Input!F2,"") ->  | E3: 氏名 | F3: =IF(Input!C3<>"",Input!C3,"") ->  | G3: 様 | H3: =IF(Input!C4<>"",Input!C4,"") -> 
F4: 平均± | G4: 1 | H4: 標準偏差
A5: Digit Span | C5: forward | D5: =IF(Input!D5<>"",Input!D5,"") ->  | E5: 桁
C6: backward | D6: =IF(Input!D6<>"",Input!D6,"") ->  | E6: 桁
A8: Tapping Span | C8: forward | D8: =IF(Input!D7<>"",Input!D7,"") ->  | E8: 桁
C9: backward | D9: =IF(Input!D8<>"",Input!D8,"") ->  | E9: 桁
A11: Visual Cancellation Ⓐ 図形△ | C11: 正答率 | D11: =IF(Input!D10<>"",Input!D10,"") ->  | E11: ％
C12: 的中率 | D12: =IF(Input!D11<>"",Input!D11,"") ->  | E12: ％
A14: Visual Cancellation Ⓑ 図形※ | C14: 正答率 | D14: =IF(Input!D13<>"",Input!D13,"") ->  | E14: ％
C15: 的中率 | D15: =IF(Input!D14<>"",Input!D14,"") ->  | E15: ％
A17: Visual Cancellation Ⓒ 数字 3 | C17: 正答率 | D17: =IF(Input!D16<>"",Input!D16,"") ->  | E17: ％
C18: 的中率 | D18: =IF(Input!D17<>"",Input!D17,"") ->  | E18: ％
A20: Visual Cancellation Ⓓ 仮名 か | C20: 正答率 | D20: =IF(Input!D19<>"",Input!D19,"") ->  | E20: ％
C21: 的中率 | D21: =IF(Input!D20<>"",Input!D20,"") ->  | E21: ％
A23: Auditory Detection | C23: 正答率 | D23: =IF(Input!D21<>"",Input!D21,"") ->  | E23: ％
C24: 的中率 | D24: =IF(Input!D22<>"",Input!D22,"") ->  | E24: ％
A26: Memory Updating | C26: 3スパン 正答率 | D26: =IF(Input!D23<>"",Input!D23,"") ->  | E26: ％
C27: 4スパン 正答率 | D27: =IF(Input!D24<>"",Input!D24,"") ->  | E27: ％
A29: PASAT | C29: 2秒条件 正答率 | D29: =IF(Input!D25<>"",Input!D25,"") ->  | E29: ％
C30: 1秒条件 正答率 | D30: =IF(Input!D26<>"",Input!D26,"") ->  | E30: ％
A32: CPT-2 正答率 | C32: SRT | D32: =IF(Input!D33<>"",Input!D33,"") ->  | E32: ％
C33: X | D33: =IF(Input!D34<>"",Input!D34,"") ->  | E33: ％
C34: AX | D34: =IF(Input!D35<>"",Input!D35,"") ->  | E34: ％
A36: CPT-2 的中率 | C36: SRT | D36: =IF(Input!D36<>"",Input!D36,"") ->  | E36: ％
C37: X | D37: =IF(Input!D37<>"",Input!D37,"") ->  | E37: ％
C38: AX | D38: =IF(Input!D38<>"",Input!D38,"") ->  | E38: ％
A40: CPT-2 修正正答率 | C40: SRT | D40: =IF(Input!D39<>"",Input!D39,"") ->  | E40: ％
C41: X | D41: =IF(Input!D40<>"",Input!D40,"") ->  | E41: ％
C42: AX | D42: =IF(Input!D41<>"",Input!D41,"") ->  | E42: ％
A44: Visual Cancellation 所要時間 | C44: Ⓐ 図形△ | D44: =IF(Input!D9<>"",Input!D9,"") ->  | E44: sec.
C46: Ⓑ 図形※ | D46: =IF(Input!D12<>"",Input!D12,"") ->  | E46: sec.
C48: Ⓒ 数字 3 | D48: =IF(Input!D15<>"",Input!D15,"") ->  | E48: sec.
C50: Ⓓ 仮名 か | D50: =IF(Input!D18<>"",Input!D18,"") ->  | E50: sec.
A52: CPT-2 平均反応時間 | C52: SRT | D52: =IF(Input!D27<>"",Input!D27,"") ->  | E52: msec.
C53: X | D53: =IF(Input!D28<>"",Input!D28,"") ->  | E53: msec.
C54: AX | D54: =IF(Input!D29<>"",Input!D29,"") ->  | E54: msec.
A56: CPT-2 誤反応 | C56: SRT | D56: =IF(Input!D30<>"",Input!D30,"") ->  | E56: 回 | H56: =IF(D56="","",IF(ISNUMBER(D56)=FALSE,"",(IF(D56>=4,"異常","正常")))) -> 
C57: X | D57: =IF(Input!D31<>"",Input!D31,"") ->  | E57: 回 | H57: =IF(D57="","",IF(ISNUMBER(D57)=FALSE,"",(IF(D57>=10,"異常","正常")))) -> 
C58: AX | D58: =IF(Input!D32<>"",Input!D32,"") ->  | E58: 回 | H58: =IF(D58="","",IF(ISNUMBER(D58)=FALSE,"",(IF(D58>=11,"異常","正常")))) -> 
A60: CPT-2 変動係数 | C60: SRT | D60: =IF(Input!D42<>"",Input!D42,"") -> 
C61: X | D61: =IF(Input!D43<>"",Input!D43,"") -> 
C62: AX | D62: =IF(Input!D44<>"",Input!D44,"") -> 

Sheet Compute
A1: 1 | M1: 1
A2: 2 | M2: 2
A3: 3 | M3: 3
B4: 入力 | C4: 最大値 | D4: グラフ出力 | E4: 縦軸 | F4: 目盛 | G4: 目盛 | H4: 目盛 | I4: 目盛 | J4: 行数 | M4: 入力 | N4: 最大値 | O4: グラフ出力 | P4: 縦軸 | Q4: 目盛 | R4: 目盛 | S4: 目盛 | T4: 目盛 | X4: 入力 | Y4: 最大値 | Z4: グラフ出力 | AA4: 縦軸 | AB4: 目盛 | AC4: 目盛 | AD4: 目盛 | AE4: 目盛
A5: 桁 DS | B5: =Input!D5 -> 0 | C5: 10 | E5: =E6+1 -> 15.5 | F5: 2 | G5: 5 | H5: 8 | I5: 6 | J5: 1 | L5: CPT-2 誤反応 | M5: =Input!D30 -> 0 | N5: 20 | O5: 0 | P5: =P6+1 -> 2.5 | Q5: 2.5 | R5: 5 | S5: 5.83 | T5: 9.17 | V5: DigitSpan | W5: forward | X5: =B5 -> 0 | Y5: 10 | Z5: 0 | AA5: =AA6+1 -> 11.5 | AB5: 2 | AC5: 5 | AD5: 8 | AE5: 6
A6: 桁 | B6: =Input!D6 -> 0 | C6: 10 | E6: 14.5 | F6: 2 | G6: 5 | H6: 8 | I6: 6 | J6: 2 | M6: =Input!D31 -> 0 | N6: 20 | O6: 0 | P6: =P7+1 -> 1.5 | Q6: 2.5 | R6: 5 | S6: 5.83 | T6: 9.17 | W6: backward | X6: 0 | Y6: 10 | Z6: 0 | AA6: 10.5 | AB6: 2 | AC6: 5 | AD6: 8 | AE6: 6
A7: 桁 TS | B7: =Input!D7 -> 0 | C7: 10 | E7: 13.5 | F7: 2 | G7: 5 | H7: 8 | I7: 6 | J7: 3 | M7: =Input!D32 -> 0 | N7: 20 | O7: 0 | P7: 0.5 | Q7: 2.5 | R7: 5 | S7: 5.83 | T7: 9.17 | V7: Tappimg Span | W7: forward | X7: 0 | Y7: 10 | Z7: 0 | AA7: 9.5 | AB7: 2 | AC7: 5 | AD7: 8 | AE7: 6
A8: 桁 | B8: =Input!D8 -> 0 | C8: 10 | E8: 12.5 | F8: 2 | G8: 5 | H8: 8 | I8: 6 | J8: 4 | L8: CPT-2 正答率 | M8: =Input!D33 -> 0 | N8: 100 | O8: 0 | P8: =P9+1 -> 2.5 | Q8: 2 | R8: 5 | S8: 8 | T8: 6 | W8: backward | X8: 0 | Y8: 10 | Z8: 0 | AA8: 8.5 | AB8: =Q8 -> 2 | AC8: =R8 -> 5 | AD8: =S8 -> 8 | AE8: =T8 -> 6
A9: 210sec △ | B9: =Input!D9 -> 0 | C9: 210 | E9: 11.5 | F9: 2 | G9: 5 | H9: 8 | I9: 6 | J9: 5 | M9: =Input!D34 -> 0 | N9: 100 | O9: 0 | P9: =P10+1 -> 1.5 | Q9: 2 | R9: 5 | S9: 8 | T9: 6 | V9: VC図形△ | W9: VC△ 正答率 | X9: =B10 -> 0 | Y9: =C10 -> 100 | Z9: 0 | AA9: 7.5 | AB9: 2 | AC9: 5 | AD9: 8 | AE9: 6
A10: % | B10: =Input!D10 -> 0 | C10: 100 | E10: 10.5 | F10: 2 | G10: 5 | H10: 8 | I10: 6 | J10: 6 | M10: =Input!D35 -> 0 | N10: 100 | O10: 0 | P10: 0.5 | Q10: 2 | R10: 5 | S10: 8 | T10: 6 | W10: VC△ 的中率 | X10: =B11 -> 0 | Y10: 100 | Z10: 0 | AA10: 6.5 | AB10: 2 | AC10: 5 | AD10: 8 | AE10: 6
A11: % | B11: =Input!D11 -> 0 | C11: 100 | E11: 9.5 | F11: 2 | G11: 5 | H11: 8 | I11: 6 | J11: 7 | L11: CPT-2 的中率 | M11: =Input!D36 -> 0 | N11: 100 | O11: 0 | P11: =P12+1 -> 2.5 | Q11: 2 | R11: 5 | S11: 8 | T11: 6 | V11: VC図形※ | W11: VC※ 正答率 | X11: =B13 -> 0 | Y11: =C13 -> 100 | Z11: 0 | AA11: 5.5 | AB11: 2 | AC11: 5 | AD11: =H13 -> 8 | AE11: 6
A12: 210sec ※ | B12: =Input!D12 -> 0 | C12: 210 | E12: 8.5 | F12: 2 | G12: 5 | H12: 8 | I12: 6 | J12: 8 | M12: =Input!D37 -> 0 | N12: 100 | O12: 0 | P12: =P13+1 -> 1.5 | Q12: 2 | R12: 5 | S12: 8 | T12: 6 | W12: VC※ 的中率 | X12: =B14 -> 0 | Y12: 100 | Z12: 0 | AA12: 4.5 | AB12: 2 | AC12: 5 | AD12: 8 | AE12: 6
A13: % | B13: =Input!D13 -> 0 | C13: 100 | E13: 7.5 | F13: 2 | G13: 5 | H13: 8 | I13: 6 | J13: 9 | M13: =Input!D38 -> 0 | N13: 100 | O13: 0 | P13: 0.5 | Q13: 2 | R13: 5 | S13: 8 | T13: 6 | V13: VC 3 | W13: VC 3 正答率 | X13: =B16 -> 0 | Y13: =C16 -> 100 | Z13: 0 | AA13: 3.5 | AB13: 2 | AC13: 5 | AD13: 8 | AE13: 6
A14: % | B14: =Input!D14 -> 0 | C14: 100 | E14: 6.5 | F14: 2 | G14: 5 | H14: 8 | I14: 6 | J14: 10 | L14: CPT-2 修正正答率 | M14: =Input!D39 -> 0 | N14: 100 | O14: 0 | P14: =P15+1 -> 2.5 | Q14: 2 | R14: 5 | S14: 8 | T14: 6 | W14: VC 3 的中率 | X14: =B17 -> 0 | Y14: 100 | Z14: 0 | AA14: 2.5 | AB14: 2 | AC14: 5 | AD14: 8 | AE14: 6
A15: 210sec 3 | B15: =Input!D15 -> 0 | C15: 210 | E15: 5.5 | F15: 2 | G15: 5 | H15: 8 | I15: 6 | J15: 11 | M15: =Input!D40 -> 0 | N15: 100 | O15: 0 | P15: =P16+1 -> 1.5 | Q15: 2 | R15: 5 | S15: 8 | T15: 6 | V15: VC か | W15: VC か 正答率 | X15: =B19 -> 0 | Y15: =C19 -> 100 | Z15: 0 | AA15: =AA16+1 -> 1.5 | AB15: 2 | AC15: 5 | AD15: 8 | AE15: 6
A16: % | B16: =Input!D16 -> 0 | C16: 100 | E16: 4.5 | F16: 2 | G16: 5 | H16: 8 | I16: 6 | J16: 12 | M16: =Input!D41 -> 0 | N16: 100 | O16: 0 | P16: 0.5 | Q16: 2 | R16: 5 | S16: 8 | T16: 6 | W16: VC か 的中率 | X16: =B20 -> 0 | Y16: 100 | Z16: 0 | AA16: 0.5 | AB16: 2 | AC16: 5 | AD16: 8 | AE16: 6
A17: % | B17: =Input!D17 -> 0 | C17: 100 | E17: 3.5 | F17: 2 | G17: 5 | H17: 8 | I17: 6 | J17: 13 | L17: CPT-2 変動係数 | M17: =Input!D42 -> 0 | N17: 30 | O17: 0 | P17: =P18+1 -> 2.5 | Q17: 2 | R17: 5 | S17: 8 | T17: 6
A18: 210sec か | B18: =Input!D18 -> 0 | C18: 210 | E18: 2.5 | F18: 2 | G18: 5 | H18: 8 | I18: 6 | J18: 14 | M18: =Input!D43 -> 0 | N18: 30 | O18: 0 | P18: =P19+1 -> 1.5 | Q18: 2 | R18: 5 | S18: 8 | T18: 6 | V18: VC 所要時間 | W18: VC△ | X18: =B9 -> 0 | Y18: =C9 -> 210 | Z18: =D9 -> 0 | AA18: =AA19+1 -> 3.5 | AB18: 2.86 | AC18: =G9 -> 5 | AD18: 4.29 | AE18: 7.86
A19: % | B19: =Input!D19 -> 0 | C19: 100 | E19: =E20+1 -> 1.5 | F19: 2 | G19: 5 | H19: 8 | I19: 6 | J19: 15 | M19: =Input!D44 -> 0 | N19: 30 | O19: 0 | P19: 0.5 | Q19: 2 | R19: 5 | S19: 8 | T19: 6 | W19: VC※ | X19: =B12 -> 0 | Y19: =C12 -> 210 | Z19: =D12 -> 0 | AA19: =AA20+1 -> 2.5 | AB19: 2.86 | AC19: =G12 -> 5 | AD19: 4.29 | AE19: 7.86
A20: % | B20: =Input!D20 -> 0 | C20: 100 | E20: 0.5 | F20: 2 | G20: 5 | H20: 8 | I20: 6 | J20: 16 | W20: VC 3 | X20: =B15 -> 0 | Y20: =C15 -> 210 | Z20: =D15 -> 0 | AA20: =AA21+1 -> 1.5 | AB20: 2.86 | AC20: =G15 -> 5 | AD20: 4.29 | AE20: 7.86
A21: % AD | B21: =Input!D21 -> 0 | C21: 100 | E21: =E22+1 -> 5.5 | F21: 2 | G21: 5 | H21: 8 | I21: 6 | J21: 17 | W21: VC か | X21: =B18 -> 0 | Y21: =C18 -> 210 | Z21: =D18 -> 0 | AA21: 0.5 | AB21: 2.86 | AC21: =G18 -> 5 | AD21: 4.29 | AE21: 7.86
A22: % | B22: =Input!D22 -> 0 | C22: 100 | E22: =E23+1 -> 4.5 | F22: 2 | G22: 5 | H22: 8 | I22: 6 | J22: 18
A23: % MU | B23: =Input!D23 -> 0 | C23: 100 | E23: =E24+1 -> 3.5 | F23: 2 | G23: 5 | H23: 8 | I23: 6 | J23: 19
A24: % | B24: =Input!D24 -> 0 | C24: 100 | E24: =E25+1 -> 2.5 | F24: 2 | G24: 5 | H24: 8 | I24: 6 | J24: 20
A25: % PASAT | B25: =Input!D25 -> 0 | C25: 100 | E25: =E26+1 -> 1.5 | F25: 2 | G25: 5 | H25: 8 | I25: 6 | J25: 21
A26: % | B26: =Input!D26 -> 0 | C26: 100 | E26: 0.5 | F26: 2 | G26: 5 | H26: 8 | I26: 6 | J26: 22
A27: 800msec CPT-2 | B27: =Input!D27 -> 0 | C27: 800 | E27: =E28+1 -> 2.5 | F27: 400 | G27: 500 | J27: 23
A28: 800msec | B28: =Input!D28 -> 0 | C28: 800 | E28: =E29+1 -> 1.5 | F28: 400 | G28: 500 | J28: 24
A29: 800msec | B29: =Input!D29 -> 0 | C29: 800 | E29: 0.5 | F29: 400 | G29: 500 | J29: 25
D31: ■:計算結果,■:入力不要,■:入力値無し
A32: M±SD | B32: 1 | C32: 入力値 | J32: グラフ出力(左記の入力値を変換) | R32: 入力値 | Y32: グラフ出力(左記の入力値を変換) | AH32: グラフ出力(左記の入力値を変換)
A33: 20代 | C33: 平均 | D33: SD | E33: SD上 | F33: SD下 | G33: cutoff | H33: 最大値 | I33: 最大値 | J33: 平均 | K33: SD上 | L33: SD下 | M33: cutoff | N33: 縦軸 | P33: 20代 | R33: 平均 | S33: SD | T33: SD上 | U33: SD下 | V33: cutoff | W33: 最大値 | X33: 最大値 | Y33: 平均 | Z33: SD上 | AA33: SD下 | AB33: cutoff | AC33: 縦軸 | AE33: 20代 | AG33: 最大値 | AH33: 平均 | AI33: SD上 | AJ33: SD下 | AK33: cutoff | AL33: 縦軸
A34: DigitSpan | B34: forward | C34: 7.5 | D34: 0.9 | E34: =IF(C34+($B$32*D34)>H34,H34,C34+($B$32*D34)) -> 8.4 | F34: =IF(C34-($B$32*D34)<0,0,C34-($B$32*D34)) -> 6.6 | G34: 6 | H34: 10 | I34: 10 | J34: =C34/I34*10 -> 7.5 | K34: =E34/I34*10 -> 8.4 | L34: =F34/I34*10 -> 6.6 | M34: =G34/I34*10 -> 6 | N34: =$E$5 -> 15.5 | P34: CPT2 誤反応 | Q34: SRT | T34: =IF(R34+($B$32*S34)>W34,W34,R34+($B$32*S34)) -> 0 | U34: =IF(R34-($B$32*S34)<0,0,R34-($B$32*S34)) -> 0 | V34: 4 | W34: 20 | X34: =W34 -> 20 | Y34: =R34/X34*10 -> 0 | Z34: =T34/X34*10 -> 0 | AA34: =U34/X34*10 -> 0 | AB34: =V34/X34*10 -> 2 | AC34: =AC35+1 -> 2.5 | AE34: DigitSpan | AF34: forward | AG34: =I34 -> 10 | AH34: =J34 -> 7.5 | AI34: 8.4 | AJ34: 6.6 | AK34: 6 | AL34: =AL35+1 -> 11.5
B35: backward | C35: 5.4 | D35: 0.7 | E35: =IF(C35+($B$32*D35)>H35,H35,C35+($B$32*D35)) -> 6.1 | F35: =IF(C35-($B$32*D35)<0,0,C35-($B$32*D35)) -> 4.7 | G35: 4 | H35: 10 | I35: 10 | J35: 5.4 | K35: 6.1 | L35: 4.7 | M35: =G35/I35*10 -> 4 | N35: =$E$6 -> 14.5 | Q35: X | T35: =IF(R35+($B$32*S35)>W35,W35,R35+($B$32*S35)) -> 0 | U35: =IF(R35-($B$32*S35)<0,0,R35-($B$32*S35)) -> 0 | V35: 10 | W35: 20 | X35: =W35 -> 20 | Y35: =R35/X35*10 -> 0 | Z35: =T35/X35*10 -> 0 | AA35: =U35/X35*10 -> 0 | AB35: =V35/X35*10 -> 5 | AC35: =AC36+1 -> 1.5 | AF35: backward | AG35: =I35 -> 10 | AH35: 5.4 | AI35: 6.1 | AJ35: 4.7 | AK35: 4 | AL35: 10.5
A36: Tappimg Span | B36: forward | C36: 6.9 | D36: 1.1 | E36: 8 | F36: 5.8 | G36: 6 | H36: 10 | I36: 10 | J36: 6.9 | K36: 8 | L36: 5.8 | M36: =G36/I36*10 -> 6 | N36: =$E$7 -> 13.5 | Q36: AX | T36: 0 | U36: 0 | V36: 11 | W36: 20 | X36: 20 | Y36: 0 | Z36: =T36/X36*10 -> 0 | AA36: 0 | AB36: =V36/X36*10 -> 5.5 | AC36: 0.5 | AE36: Tappimg Span | AF36: forward | AG36: =I36 -> 10 | AH36: 6.9 | AI36: 8 | AJ36: 5.8 | AK36: 6 | AL36: 9.5
B37: backward | C37: 6.2 | D37: 1.3 | E37: 7.5 | F37: 4.9 | G37: 5 | H37: 10 | I37: 10 | J37: 6.2 | K37: 7.5 | L37: 4.9 | M37: =G37/I37*10 -> 5 | N37: =$E$8 -> 12.5 | P37: CPT2 正答率 | Q37: SRT | R37: 99.7 | S37: 0.7 | T37: =IF(R37+($B$32*S37)>W37,W37,R37+($B$32*S37)) -> 100 | U37: 99 | W37: 100 | X37: 100 | Y37: 9.97 | Z37: =T37/X37*10 -> 10 | AA37: 9.9 | AC37: =AC38+1 -> 2.5 | AF37: backward | AG37: =I37 -> 10 | AH37: 6.2 | AI37: 7.5 | AJ37: 4.9 | AK37: =M37 -> 5 | AL37: 8.5
A38: VC図形△ | B38: VC△ 所要時間 | C38: 34.6 | D38: 6.1 | E38: 40.7 | F38: 28.5 | H38: 210 | I38: 210 | J38: 1.647619048 | K38: 1.938095238 | L38: 1.357142857 | N38: =$E$9 -> 11.5 | Q38: X | R38: 99.9 | S38: 0.5 | T38: 100 | U38: 99.4 | W38: 100 | X38: 100 | Y38: 9.99 | Z38: =T38/X38*10 -> 10 | AA38: 9.94 | AC38: =AC39+1 -> 1.5 | AE38: VC図形△ | AF38: VC△ 正答率 | AG38: =I39 -> 100 | AH38: =J39 -> 10 | AI38: =K39 -> 10 | AJ38: =L39 -> 10 | AL38: 7.5
B39: VC△ 正答率 | C39: 100 | D39: 0 | E39: 100 | F39: 100 | H39: 100 | I39: 100 | J39: 10 | K39: 10 | L39: 10 | N39: =$E$10 -> 10.5 | Q39: AX | R39: 97.9 | S39: 3.6 | T39: 100 | U39: 94.3 | W39: 100 | X39: 100 | Y39: 9.79 | Z39: 10 | AA39: 9.43 | AC39: 0.5 | AF39: VC△ 的中率 | AG39: =I40 -> 100 | AH39: 9.99 | AI39: 10 | AJ39: 9.96 | AL39: 6.5
B40: VC△ 的中率 | C40: 99.9 | D40: 0.3 | E40: 100 | F40: 99.6 | H40: 100 | I40: 100 | J40: 9.99 | K40: 10 | L40: 9.96 | N40: =$E$11 -> 9.5 | P40: CPT2 的中率 | Q40: SRT | R40: 99.8 | S40: 0.6 | T40: 100 | U40: 99.2 | W40: 100 | X40: 100 | Y40: 9.98 | Z40: 10 | AA40: 9.92 | AC40: =AC41+1 -> 2.5 | AE40: VC図形※ | AF40: VC※ 正答率 | AG40: =I42 -> 100 | AH40: =J42 -> 10 | AI40: 10 | AJ40: 10 | AL40: 5.5
A41: VC図形※ | B41: VC※ 所要時間 | C41: 40 | D41: 6.7 | E41: 46.7 | F41: 33.3 | H41: 210 | I41: 210 | J41: 1.904761905 | K41: 2.223809524 | L41: 1.585714286 | N41: =$E$12 -> 8.5 | Q41: X | R41: 99.3 | S41: 1.5 | T41: 100 | U41: 97.8 | W41: 100 | X41: 100 | Y41: 9.93 | Z41: 10 | AA41: 9.78 | AC41: =AC42+1 -> 1.5 | AF41: VC※ 的中率 | AG41: =I43 -> 100 | AH41: 9.98 | AI41: 10 | AJ41: 9.92 | AL41: 4.5
B42: VC※ 正答率 | C42: 100 | D42: 0 | E42: 100 | F42: 100 | H42: 100 | I42: 100 | J42: 10 | K42: 10 | L42: 10 | N42: =$E$13 -> 7.5 | Q42: AX | R42: 97.5 | S42: 2.9 | T42: 100 | U42: 94.6 | W42: 100 | X42: 100 | Y42: 9.75 | Z42: 10 | AA42: 9.46 | AC42: 0.5 | AE42: VC 3 | AF42: VC 3 正答率 | AG42: =I45 -> 100 | AH42: =J45 -> 9.96 | AI42: 10 | AJ42: 9.89 | AL42: 3.5
B43: VC※ 的中率 | C43: 99.8 | D43: 0.6 | E43: 100 | F43: 99.2 | H43: 100 | I43: 100 | J43: 9.98 | K43: 10 | L43: 9.92 | N43: =$E$14 -> 6.5 | P43: CPT2 修正正答率 | Q43: SRT | R43: 99.9 | S43: 0.4 | T43: 100 | U43: 99.5 | W43: 100 | X43: 100 | Y43: 9.99 | Z43: 10 | AA43: 9.95 | AC43: =AC44+1 -> 2.5 | AF43: VC 3 的中率 | AG43: =I46 -> 100 | AH43: 10 | AI43: 10 | AJ43: 9.96 | AL43: 2.5
A44: VC 3 | B44: VC 3 所要時間 | C44: 67 | D44: 10.3 | E44: 77.3 | F44: 56.7 | H44: 210 | I44: 210 | J44: 3.19047619 | K44: 3.680952381 | L44: 2.7 | N44: =$E$15 -> 5.5 | Q44: X | R44: 99.7 | S44: 0.6 | T44: 100 | U44: 99.1 | W44: 100 | X44: 100 | Y44: 9.97 | Z44: 10 | AA44: 9.91 | AC44: =AC45+1 -> 1.5 | AE44: VC か | AF44: VC か 正答率 | AG44: =I48 -> 100 | AH44: =J48 -> 9.83 | AI44: 10 | AJ44: 9.65 | AL44: =AL45+1 -> 1.5
B45: VC 3 正答率 | C45: 99.6 | D45: 0.7 | E45: 100 | F45: 98.9 | H45: 100 | I45: 100 | J45: =C45/I45*10 -> 9.96 | K45: =E45/I45*10 -> 10 | L45: =F45/I45*10 -> 9.89 | N45: =$E$16 -> 4.5 | Q45: AX | R45: 97.6 | S45: 3.6 | T45: 100 | U45: 94 | W45: 100 | X45: 100 | Y45: 9.76 | Z45: 10 | AA45: 9.4 | AC45: 0.5 | AF45: VC か 的中率 | AG45: =I49 -> 100 | AH45: 10 | AI45: 10 | AJ45: 9.98 | AL45: 0.5
B46: VC 3 的中率 | C46: 100 | D46: 0.4 | E46: 100 | F46: 99.6 | H46: 100 | I46: 100 | J46: 10 | K46: 10 | L46: 9.96 | N46: =$E$17 -> 3.5 | P46: CPT2 変動係数 | Q46: SRT | R46: 12.2 | S46: 4.1 | T46: 16.3 | U46: 8.1 | W46: 30 | X46: 30 | Y46: 4.066666667 | Z46: 5.433333333 | AA46: 2.7 | AC46: =AC47+1 -> 2.5
A47: VC か | B47: VC か 所要時間 | C47: 81.9 | D47: 13 | E47: 94.9 | F47: 68.9 | H47: 210 | I47: 210 | J47: =C47/I47*10 -> 3.9 | K47: =E47/I47*10 -> 4.519047619 | L47: 3.280952381 | N47: =$E$18 -> 2.5 | Q47: X | R47: 12.2 | S47: 2.8 | T47: 15 | U47: 9.4 | W47: 30 | X47: 30 | Y47: 4.066666667 | Z47: 5 | AA47: 3.133333333 | AC47: =AC48+1 -> 1.5 | AE47: VC 所要時間 | AF47: VC△ | AG47: =I41 -> 210 | AH47: =J41 -> 1.904761905 | AI47: =K41 -> 2.223809524 | AJ47: =L41 -> 1.585714286 | AL47: =AL48+1 -> 3.5
B48: VC か 正答率 | C48: 98.3 | D48: 1.8 | E48: 100 | F48: 96.5 | H48: 100 | I48: 100 | J48: 9.83 | K48: 10 | L48: 9.65 | N48: =$E$19 -> 1.5 | Q48: AX | R48: 14.6 | S48: 4.5 | T48: =IF(R48+($B$32*S48)>W48,W48,R48+($B$32*S48)) -> 19.1 | U48: 10.1 | W48: 30 | X48: 30 | Y48: =R48/X48*10 -> 4.866666667 | Z48: =T48/X48*10 -> 6.366666667 | AA48: 3.366666667 | AC48: 0.5 | AF48: VC※ | AG48: =I41 -> 210 | AH48: =J41 -> 1.904761905 | AI48: =K41 -> 2.223809524 | AJ48: =L41 -> 1.585714286 | AL48: =AL49+1 -> 2.5
B49: VC か 的中率 | C49: 100 | D49: 0.2 | E49: 100 | F49: 99.8 | H49: 100 | I49: 100 | J49: 10 | K49: 10 | L49: 9.98 | N49: =$E$20 -> 0.5 | AF49: VC 3 | AG49: =I44 -> 210 | AH49: =J44 -> 3.19047619 | AI49: =K44 -> 3.680952381 | AJ49: =L44 -> 2.7 | AL49: =AL50+1 -> 1.5
A50: AD | B50: AD 正答率 | C50: 98.8 | D50: 1.5 | E50: 100 | F50: 97.3 | G50: 96 | H50: 100 | I50: 100 | J50: 9.88 | K50: 10 | L50: 9.73 | M50: =G50/I50*10 -> 9.6 | N50: =$E$21 -> 5.5 | AF50: VC か | AG50: =I47 -> 210 | AH50: =J47 -> 3.9 | AI50: =K47 -> 4.519047619 | AJ50: =L47 -> 3.280952381 | AL50: 0.5
B51: AD 的中率 | C51: 99 | D51: 1.2 | E51: 100 | F51: 97.8 | G51: 96 | H51: 100 | I51: 100 | J51: 9.9 | K51: 10 | L51: 9.78 | M51: 9.6 | N51: =$E$22 -> 4.5
A52: MU正答率 | B52: MU 3スパン | C52: 96.4 | D52: 4.6 | E52: 100 | F52: 91.8 | G52: 88 | H52: 100 | I52: 100 | J52: 9.64 | K52: 10 | L52: 9.18 | M52: 8.8 | N52: =$E$23 -> 3.5
B53: MU 4スパン | C53: 85 | D53: 13.3 | E53: 98.3 | F53: 71.7 | G53: 69 | H53: 100 | I53: 100 | J53: 8.5 | K53: 9.83 | L53: 7.17 | M53: 6.9 | N53: =$E$24 -> 2.5
A54: PASAT正答率 | B54: PASAT 2秒 | C54: 86.9 | D54: 10.4 | E54: 97.3 | F54: 76.5 | G54: 75 | H54: 100 | I54: 100 | J54: 8.69 | K54: 9.73 | L54: 7.65 | M54: 7.5 | N54: =$E$25 -> 1.5
B55: PASAT 1秒 | C55: 57.7 | D55: 14.7 | E55: 72.4 | F55: 43 | G55: 43 | H55: 100 | I55: 100 | J55: 5.77 | K55: 7.24 | L55: 4.3 | M55: 4.3 | N55: =$E$26 -> 0.5
A56: CPT2 時間 | B56: SRT | C56: 298.1 | D56: 37.9 | E56: 336 | F56: 260.2 | H56: 800 | I56: 800 | J56: =C56/I56*800 -> 298.1 | K56: =E56/I56*800 -> 336 | L56: =F56/I56*800 -> 260.2 | N56: =N57+1 -> 2.5
B57: X | C57: 458.7 | D57: 46.3 | E57: 505 | F57: 412.4 | H57: 800 | I57: 800 | J57: =C57/I57*800 -> 458.7 | K57: =E57/I57*800 -> 505 | L57: =F57/I57*800 -> 412.4 | N57: =N58+1 -> 1.5
B58: AX | C58: 438.6 | D58: 55.1 | E58: =IF(C58+($B$32*D58)>H58,H58,C58+($B$32*D58)) -> 493.7 | F58: =IF(C58-($B$32*D58)<0,0,C58-($B$32*D58)) -> 383.5 | H58: 800 | I58: 800 | J58: =C58/I58*800 -> 438.6 | K58: =E58/I58*800 -> 493.7 | L58: =F58/I58*800 -> 383.5 | N58: 0.5
A61: M±SD | B61: 1 | C61: 入力値 | J61: グラフ出力 | R61: 入力値 | Y61: グラフ出力(左記の入力値を変換) | AH61: グラフ出力(左記の入力値を変換)
A62: 30代 | C62: 平均 | D62: SD | E62: SD上 | F62: SD下 | G62: cutoff | H62: 最大値 | I62: 最大値 | J62: 平均 | K62: SD上 | L62: SD下 | M62: cutoff | N62: 縦軸 | P62: 30代 | R62: 平均 | S62: SD | T62: SD上 | U62: SD下 | V62: cutoff | W62: 最大値 | X62: 最大値 | Y62: 平均 | Z62: SD上 | AA62: SD下 | AB62: cutoff | AC62: 縦軸 | AE62: 30代 | AG62: 最大値 | AH62: 平均 | AI62: SD上 | AJ62: SD下 | AK62: cutoff | AL62: 縦軸
A63: DigitSpan | B63: forward | C63: 6.8 | D63: 1.3 | E63: =IF(C63+($B$61*D63)>H63,H63,C63+($B$61*D63)) -> 8.1 | F63: =IF(C63-($B$61*D63)<0,0,C63-($B$61*D63)) -> 5.5 | G63: 5 | H63: 10 | I63: 10 | J63: =C63/I63*10 -> 6.8 | K63: =E63/I63*10 -> 8.1 | L63: =F63/I63*10 -> 5.5 | M63: =G63/I63*10 -> 5 | N63: =$E$5 -> 15.5 | P63: CPT2 誤反応 | Q63: SRT | T63: =IF(R63+($B$61*S63)>W63,W63,R63+($B$61*S63)) -> 0 | U63: =IF(R63-($B$61*S63)<0,0,R63-($B$61*S63)) -> 0 | V63: 4 | W63: 20 | X63: =W63 -> 20 | Y63: =R63/X63*10 -> 0 | Z63: =T63/X63*10 -> 0 | AA63: =U63/X63*10 -> 0 | AB63: =V63/X63*10 -> 2 | AC63: =AC64+1 -> 2.5 | AE63: DigitSpan | AF63: forward | AG63: =I63 -> 10 | AH63: 6.8 | AI63: 8.1 | AJ63: 5.5 | AK63: 5 | AL63: =AL64+1 -> 11.5
B64: backward | C64: 5.2 | D64: 0.7 | E64: =IF(C64+($B$61*D64)>H64,H64,C64+($B$61*D64)) -> 5.9 | F64: =IF(C64-($B$61*D64)<0,0,C64-($B$61*D64)) -> 4.5 | G64: 4 | H64: 10 | I64: 10 | J64: 5.2 | K64: 5.9 | L64: 4.5 | M64: =G64/I64*10 -> 4 | N64: =$E$6 -> 14.5 | Q64: X | T64: =IF(R64+($B$61*S64)>W64,W64,R64+($B$61*S64)) -> 0 | U64: =IF(R64-($B$61*S64)<0,0,R64-($B$61*S64)) -> 0 | V64: 10 | W64: 20 | X64: =W64 -> 20 | Y64: =R64/X64*10 -> 0 | Z64: =T64/X64*10 -> 0 | AA64: =U64/X64*10 -> 0 | AB64: =V64/X64*10 -> 5 | AC64: =AC65+1 -> 1.5 | AF64: backward | AG64: 10 | AH64: 5.2 | AI64: 5.9 | AJ64: 4.5 | AK64: 4 | AL64: 10.5
A65: Tappimg Span | B65: forward | C65: 6.5 | D65: 1.4 | E65: 7.9 | F65: 5.1 | G65: 5 | H65: 10 | I65: 10 | J65: 6.5 | K65: 7.9 | L65: 5.1 | M65: =G65/I65*10 -> 5 | N65: =$E$7 -> 13.5 | Q65: AX | T65: 0 | U65: 0 | V65: 11 | W65: 20 | X65: 20 | Y65: 0 | Z65: =T65/X65*10 -> 0 | AA65: 0 | AB65: =V65/X65*10 -> 5.5 | AC65: 0.5 | AE65: Tappimg Span | AF65: forward | AG65: 10 | AH65: 6.5 | AI65: 7.9 | AJ65: 5.1 | AK65: 5 | AL65: 9.5
B66: backward | C66: 6.2 | D66: 1.7 | E66: 7.9 | F66: 4.5 | G66: 5 | H66: 10 | I66: 10 | J66: 6.2 | K66: 7.9 | L66: 4.5 | M66: =G66/I66*10 -> 5 | N66: =$E$8 -> 12.5 | P66: CPT2 正答率 | Q66: SRT | R66: 99.7 | S66: 0.7 | T66: 100 | U66: 99 | W66: 100 | X66: 100 | Y66: 9.97 | Z66: =T66/X66*10 -> 10 | AA66: 9.9 | AC66: =AC67+1 -> 2.5 | AF66: backward | AG66: 10 | AH66: 6.2 | AI66: 7.9 | AJ66: 4.5 | AK66: 5 | AL66: 8.5
A67: VC図形△ | B67: VC△ 所要時間 | C67: 33.9 | D67: 5.7 | E67: 39.6 | F67: 28.2 | H67: 210 | I67: 210 | J67: 1.614285714 | K67: 1.885714286 | L67: 1.342857143 | N67: =$E$9 -> 11.5 | Q67: X | R67: 99.9 | S67: 0.5 | T67: 100 | U67: 99.4 | W67: 100 | X67: 100 | Y67: 9.99 | Z67: 10 | AA67: 9.94 | AC67: =AC68+1 -> 1.5 | AE67: VC図形△ | AF67: VC△ 正答率 | AG67: =I68 -> 100 | AH67: 9.88 | AI67: 10 | AJ67: 9.75 | AL67: 7.5
B68: VC△ 正答率 | C68: 98.8 | D68: 1.3 | E68: 100 | F68: 97.5 | H68: 100 | I68: 100 | J68: 9.88 | K68: 10 | L68: 9.75 | N68: =$E$10 -> 10.5 | Q68: AX | R68: 97.9 | S68: 3.6 | T68: 100 | U68: 94.3 | W68: 100 | X68: 100 | Y68: 9.79 | Z68: 10 | AA68: 9.43 | AC68: 0.5 | AF68: VC△ 的中率 | AG68: 100 | AH68: 9.95 | AI68: 10 | AJ68: 9.77 | AL68: 6.5
B69: VC△ 的中率 | C69: 99.5 | D69: 1.8 | E69: 100 | F69: 97.7 | H69: 100 | I69: 100 | J69: 9.95 | K69: 10 | L69: 9.77 | N69: =$E$11 -> 9.5 | P69: CPT2 的中率 | Q69: SRT | R69: 99.8 | S69: 0.6 | T69: 100 | U69: 99.2 | W69: 100 | X69: 100 | Y69: 9.98 | Z69: 10 | AA69: 9.92 | AC69: =AC70+1 -> 2.5 | AE69: VC図形※ | AF69: VC※ 正答率 | AG69: =I71 -> 100 | AH69: 9.94 | AI69: 10 | AJ69: 9.83 | AL69: 5.5
A70: VC図形※ | B70: VC※ 所要時間 | C70: 41 | D70: 7.2 | E70: 48.2 | F70: 33.8 | H70: 210 | I70: 210 | J70: 1.952380952 | K70: 2.295238095 | L70: 1.60952381 | N70: =$E$12 -> 8.5 | Q70: X | R70: 99.3 | S70: 1.5 | T70: 100 | U70: 97.8 | W70: 100 | X70: 100 | Y70: 9.93 | Z70: 10 | AA70: 9.78 | AC70: =AC71+1 -> 1.5 | AF70: VC※ 的中率 | AG70: 100 | AH70: 9.97 | AI70: 10 | AJ70: 9.81 | AL70: 4.5
B71: VC※ 正答率 | C71: 99.4 | D71: 1.1 | E71: 100 | F71: 98.3 | H71: 100 | I71: 100 | J71: 9.94 | K71: 10 | L71: 9.83 | N71: =$E$13 -> 7.5 | Q71: AX | R71: 97.5 | S71: 2.9 | T71: 100 | U71: 94.6 | W71: 100 | X71: 100 | Y71: 9.75 | Z71: 10 | AA71: 9.46 | AC71: 0.5 | AE71: VC 3 | AF71: VC 3 正答率 | AG71: =I74 -> 100 | AH71: 9.95 | AI71: 10 | AJ71: 9.89 | AL71: 3.5
B72: VC※ 的中率 | C72: 99.7 | D72: 1.6 | E72: 100 | F72: 98.1 | H72: 100 | I72: 100 | J72: 9.97 | K72: 10 | L72: 9.81 | N72: =$E$14 -> 6.5 | P72: CPT2 修正正答率 | Q72: SRT | R72: 99.9 | S72: 0.4 | T72: 100 | U72: 99.5 | W72: 100 | X72: 100 | Y72: 9.99 | Z72: 10 | AA72: 9.95 | AC72: =AC73+1 -> 2.5 | AF72: VC 3 的中率 | AG72: 100 | AH72: 10 | AI72: 10 | AJ72: 9.99 | AL72: 2.5
A73: VC 3 | B73: VC 3 所要時間 | C73: 67.7 | D73: 8.8 | E73: 76.5 | F73: 58.9 | H73: 210 | I73: 210 | J73: 3.223809524 | K73: 3.642857143 | L73: 2.804761905 | N73: =$E$15 -> 5.5 | Q73: X | R73: 99.7 | S73: 0.6 | T73: 100 | U73: 99.1 | W73: 100 | X73: 100 | Y73: 9.97 | Z73: 10 | AA73: 9.91 | AC73: =AC74+1 -> 1.5 | AE73: VC か | AF73: VC か 正答率 | AG73: =I77 -> 100 | AH73: 9.82 | AI73: 9.99 | AJ73: 9.65 | AL73: =AL74+1 -> 1.5
B74: VC 3 正答率 | C74: 99.5 | D74: 0.6 | E74: 100 | F74: 98.9 | H74: 100 | I74: 100 | J74: =C74/I74*10 -> 9.95 | K74: =E74/I74*10 -> 10 | L74: =F74/I74*10 -> 9.89 | N74: =$E$16 -> 4.5 | Q74: AX | R74: 97.6 | S74: 3.6 | T74: 100 | U74: 94 | W74: 100 | X74: 100 | Y74: 9.76 | Z74: 10 | AA74: 9.4 | AC74: 0.5 | AF74: VC か 的中率 | AG74: 100 | AH74: 9.99 | AI74: 10 | AJ74: 9.96 | AL74: 0.5
B75: VC 3 的中率 | C75: 100 | D75: 0.1 | E75: 100 | F75: 99.9 | H75: 100 | I75: 100 | J75: 10 | K75: 10 | L75: 9.99 | N75: =$E$17 -> 3.5 | P75: CPT2 変動係数 | Q75: SRT | R75: 12.2 | S75: 4.1 | T75: 16.3 | U75: 8.1 | W75: 30 | X75: 30 | Y75: 4.066666667 | Z75: 5.433333333 | AA75: 2.7 | AC75: =AC76+1 -> 2.5
A76: VC か | B76: VC か 所要時間 | C76: 83.5 | D76: 11.1 | E76: 94.6 | F76: 72.4 | H76: 210 | I76: 210 | J76: 3.976190476 | K76: 4.504761905 | L76: 3.447619048 | N76: =$E$18 -> 2.5 | Q76: X | R76: 12.2 | S76: 2.8 | T76: 15 | U76: 9.4 | W76: 30 | X76: 30 | Y76: 4.066666667 | Z76: 5 | AA76: 3.133333333 | AC76: =AC77+1 -> 1.5 | AE76: VC 所要時間 | AF76: VC△ | AG76: =I70 -> 210 | AH76: =J70 -> 1.952380952 | AI76: =K70 -> 2.295238095 | AJ76: =L70 -> 1.60952381 | AL76: =AL77+1 -> 3.5
B77: VC か 正答率 | C77: 98.2 | D77: 1.7 | E77: 99.9 | F77: 96.5 | H77: 100 | I77: 100 | J77: 9.82 | K77: 9.99 | L77: 9.65 | N77: =$E$19 -> 1.5 | Q77: AX | R77: 14.6 | S77: 4.5 | T77: 19.1 | U77: 10.1 | W77: 30 | X77: 30 | Y77: 4.866666667 | Z77: 6.366666667 | AA77: 3.366666667 | AC77: 0.5 | AF77: VC※ | AG77: =I70 -> 210 | AH77: =J70 -> 1.952380952 | AI77: =K70 -> 2.295238095 | AJ77: =L70 -> 1.60952381 | AL77: =AL78+1 -> 2.5
B78: VC か 的中率 | C78: 99.9 | D78: 0.3 | E78: 100 | F78: 99.6 | H78: 100 | I78: 100 | J78: 9.99 | K78: 10 | L78: 9.96 | N78: =$E$20 -> 0.5 | AF78: VC 3 | AG78: =I73 -> 210 | AH78: =J73 -> 3.223809524 | AI78: =K73 -> 3.642857143 | AJ78: =L73 -> 2.804761905 | AL78: =AL79+1 -> 1.5
A79: AD | B79: AD 正答率 | C79: 99.2 | D79: 1.3 | E79: 100 | F79: 97.9 | G79: 96 | H79: 100 | I79: 100 | J79: 9.92 | K79: 10 | L79: 9.79 | M79: =G79/I79*10 -> 9.6 | N79: =$E$21 -> 5.5 | AF79: VC か | AG79: =I76 -> 210 | AH79: =J76 -> 3.976190476 | AI79: =K76 -> 4.504761905 | AJ79: =L76 -> 3.447619048 | AL79: 0.5
B80: AD 的中率 | C80: 98.4 | D80: 1.8 | E80: 100 | F80: 96.6 | G80: 96 | H80: 100 | I80: 100 | J80: 9.84 | K80: 10 | L80: 9.66 | M80: 9.6 | N80: =$E$22 -> 4.5
A81: MU正答率 | B81: MU 3スパン | C81: 90.5 | D81: 9.2 | E81: 99.7 | F81: 81.3 | G81: 81 | H81: 100 | I81: 100 | J81: 9.05 | K81: 9.97 | L81: 8.13 | M81: 8.1 | N81: =$E$23 -> 3.5
B82: MU 4スパン | C82: 78.1 | D82: 16.4 | E82: 94.5 | F82: 61.7 | G82: 63 | H82: 100 | I82: 100 | J82: 7.81 | K82: 9.45 | L82: 6.17 | M82: 6.3 | N82: =$E$24 -> 2.5
A83: PASAT正答率 | B83: PASAT 2秒 | C83: 82.7 | D83: 12.8 | E83: 95.5 | F83: 69.9 | G83: 68 | H83: 100 | I83: 100 | J83: 8.27 | K83: 9.55 | L83: 6.99 | M83: 6.8 | N83: =$E$25 -> 1.5
B84: PASAT 1秒 | C84: 51.7 | D84: 16.4 | E84: 68.1 | F84: 35.3 | G84: 35 | H84: 100 | I84: 100 | J84: 5.17 | K84: 6.81 | L84: 3.53 | M84: 3.5 | N84: =$E$26 -> 0.5
A85: CPT2 | B85: SRT 平均 | C85: =C56 -> 298.1 | D85: 37.9 | E85: 336 | F85: 260.2 | H85: 800 | I85: 800 | J85: =C85/I85*800 -> 298.1 | K85: =E85/I85*800 -> 336 | L85: =F85/I85*800 -> 260.2 | N85: =$E$27 -> 2.5
B86: X 平均 | C86: 458.7 | D86: 46.3 | E86: 505 | F86: 412.4 | H86: 800 | I86: 800 | J86: =C86/I86*800 -> 458.7 | K86: =E86/I86*800 -> 505 | L86: =F86/I86*800 -> 412.4 | N86: =$E$28 -> 1.5
B87: AX 平均 | C87: 438.6 | D87: 55.1 | E87: 493.7 | F87: 383.5 | H87: 800 | I87: 800 | J87: =C87/I87*800 -> 438.6 | K87: =E87/I87*800 -> 493.7 | L87: =F87/I87*800 -> 383.5 | N87: =$E$29 -> 0.5
A90: M±SD | B90: 1 | C90: 入力値 | J90: グラフ出力 | R90: 入力値 | Y90: グラフ出力(左記の入力値を変換) | AH90: グラフ出力(左記の入力値を変換)
A91: 40代 | C91: 平均 | D91: SD | E91: SD上 | F91: SD下 | G91: cutoff | H91: 最大値 | I91: 最大値 | J91: 平均 | K91: SD上 | L91: SD下 | M91: cutoff | N91: 縦軸 | P91: 40代 | R91: 平均 | S91: SD | T91: SD上 | U91: SD下 | V91: cutoff | W91: 最大値 | X91: 最大値 | Y91: 平均 | Z91: SD上 | AA91: SD下 | AB91: cutoff | AC91: 縦軸 | AE91: 40代 | AG91: 最大値 | AH91: 平均 | AI91: SD上 | AJ91: SD下 | AK91: cutoff | AL91: 縦軸
A92: DigitSpan | B92: forward | C92: 6.6 | D92: 1.4 | E92: =IF(C92+($B$90*D92)>H92,H92,C92+($B$90*D92)) -> 8 | F92: =IF(C92-($B$90*D92)<0,0,C92-($B$90*D92)) -> 5.2 | G92: 5 | H92: 10 | I92: 10 | J92: =C92/I92*10 -> 6.6 | K92: =E92/I92*10 -> 8 | L92: =F92/I92*10 -> 5.2 | M92: =G92/I92*10 -> 5 | N92: =$E$5 -> 15.5 | P92: CPT2 誤反応 | Q92: SRT | T92: =IF(R92+($B$90*S92)>W92,W92,R92+($B$90*S92)) -> 0 | U92: =IF(R92-($B$90*S92)<0,0,R92-($B$90*S92)) -> 0 | V92: 4 | W92: 20 | X92: =W92 -> 20 | Y92: =R92/X92*10 -> 0 | Z92: =T92/X92*10 -> 0 | AA92: =U92/X92*10 -> 0 | AB92: =V92/X92*10 -> 2 | AC92: =AC93+1 -> 2.5 | AE92: DigitSpan | AF92: forward | AG92: =I92 -> 10 | AH92: 6.6 | AI92: 8 | AJ92: 5.2 | AK92: 5 | AL92: =AL93+1 -> 11.5
B93: backward | C93: 4.6 | D93: 0.6 | E93: =IF(C93+($B$90*D93)>H93,H93,C93+($B$90*D93)) -> 5.2 | F93: =IF(C93-($B$90*D93)<0,0,C93-($B$90*D93)) -> 4 | G93: 4 | H93: 10 | I93: 10 | J93: 4.6 | K93: 5.2 | L93: 4 | M93: =G93/I93*10 -> 4 | N93: =$E$6 -> 14.5 | Q93: X | T93: =IF(R93+($B$90*S93)>W93,W93,R93+($B$90*S93)) -> 0 | U93: =IF(R93-($B$90*S93)<0,0,R93-($B$90*S93)) -> 0 | V93: 10 | W93: 20 | X93: =W93 -> 20 | Y93: =R93/X93*10 -> 0 | Z93: =T93/X93*10 -> 0 | AA93: =U93/X93*10 -> 0 | AB93: =V93/X93*10 -> 5 | AC93: =AC94+1 -> 1.5 | AF93: backward | AG93: 10 | AH93: 4.6 | AI93: 5.2 | AJ93: 4 | AK93: 4 | AL93: 10.5
A94: Tappimg Span | B94: forward | C94: 6.3 | D94: 1.3 | E94: 7.6 | F94: 5 | G94: 5 | H94: 10 | I94: 10 | J94: 6.3 | K94: 7.6 | L94: 5 | M94: =G94/I94*10 -> 5 | N94: =$E$7 -> 13.5 | Q94: AX | T94: 0 | U94: 0 | V94: 11 | W94: 20 | X94: 20 | Y94: 0 | Z94: =T94/X94*10 -> 0 | AA94: 0 | AB94: =V94/X94*10 -> 5.5 | AC94: 0.5 | AE94: Tappimg Span | AF94: forward | AG94: 10 | AH94: 6.3 | AI94: 7.6 | AJ94: 5 | AK94: 5 | AL94: 9.5
B95: backward | C95: 5.9 | D95: 1.4 | E95: 7.3 | F95: 4.5 | G95: 4 | H95: 10 | I95: 10 | J95: 5.9 | K95: 7.3 | L95: 4.5 | M95: =G95/I95*10 -> 4 | N95: =$E$8 -> 12.5 | P95: CPT2 正答率 | Q95: SRT | R95: 99.7 | S95: 0.7 | T95: 100 | U95: 99 | W95: 100 | X95: 100 | Y95: 9.97 | Z95: =T95/X95*10 -> 10 | AA95: 9.9 | AC95: =AC96+1 -> 2.5 | AF95: backward | AG95: 10 | AH95: 5.9 | AI95: 7.3 | AJ95: 4.5 | AK95: 4 | AL95: 8.5
A96: VC図形△ | B96: VC△ 所要時間 | C96: 36 | D96: 5.9 | E96: 41.9 | F96: 30.1 | H96: 210 | I96: 210 | J96: 1.714285714 | K96: 1.995238095 | L96: 1.433333333 | N96: =$E$9 -> 11.5 | Q96: X | R96: 99.9 | S96: 0.5 | T96: 100 | U96: 99.4 | W96: 100 | X96: 100 | Y96: 9.99 | Z96: 10 | AA96: 9.94 | AC96: =AC97+1 -> 1.5 | AE96: VC図形△ | AF96: VC△ 正答率 | AG96: =I97 -> 100 | AH96: 9.88 | AI96: 10 | AJ96: 9.7 | AL96: 7.5
B97: VC△ 正答率 | C97: 98.8 | D97: 1.8 | E97: 100 | F97: 97 | H97: 100 | I97: 100 | J97: 9.88 | K97: 10 | L97: 9.7 | N97: =$E$10 -> 10.5 | Q97: AX | R97: 97.9 | S97: 3.6 | T97: 100 | U97: 94.3 | W97: 100 | X97: 100 | Y97: 9.79 | Z97: 10 | AA97: 9.43 | AC97: 0.5 | AF97: VC△ 的中率 | AG97: 100 | AH97: 9.98 | AI97: 10 | AJ97: 9.83 | AL97: 6.5
B98: VC△ 的中率 | C98: 99.8 | D98: 1.5 | E98: 100 | F98: 98.3 | H98: 100 | I98: 100 | J98: 9.98 | K98: 10 | L98: 9.83 | N98: =$E$11 -> 9.5 | P98: CPT2 的中率 | Q98: SRT | R98: 99.8 | S98: 0.6 | T98: 100 | U98: 99.2 | W98: 100 | X98: 100 | Y98: 9.98 | Z98: 10 | AA98: 9.92 | AC98: =AC99+1 -> 2.5 | AE98: VC図形※ | AF98: VC※ 正答率 | AG98: =I100 -> 100 | AH98: 9.94 | AI98: 10 | AJ98: 9.83 | AL98: 5.5
A99: VC図形※ | B99: VC※ 所要時間 | C99: 42.1 | D99: 6.5 | E99: 48.6 | F99: 35.6 | H99: 210 | I99: 210 | J99: 2.004761905 | K99: 2.314285714 | L99: 1.695238095 | N99: =$E$12 -> 8.5 | Q99: X | R99: 99.3 | S99: 1.5 | T99: 100 | U99: 97.8 | W99: 100 | X99: 100 | Y99: 9.93 | Z99: 10 | AA99: 9.78 | AC99: =AC100+1 -> 1.5 | AF99: VC※ 的中率 | AG99: 100 | AH99: 9.97 | AI99: 10 | AJ99: 9.83 | AL99: 4.5
B100: VC※ 正答率 | C100: 99.4 | D100: 1.1 | E100: 100 | F100: 98.3 | H100: 100 | I100: 100 | J100: 9.94 | K100: 10 | L100: 9.83 | N100: =$E$13 -> 7.5 | Q100: AX | R100: 97.5 | S100: 2.9 | T100: 100 | U100: 94.6 | W100: 100 | X100: 100 | Y100: 9.75 | Z100: 10 | AA100: 9.46 | AC100: 0.5 | AE100: VC 3 | AF100: VC 3 正答率 | AG100: =I103 -> 100 | AH100: 9.96 | AI100: 10 | AJ100: 9.9 | AL100: 3.5
B101: VC※ 的中率 | C101: 99.7 | D101: 1.4 | E101: 100 | F101: 98.3 | H101: 100 | I101: 100 | J101: 9.97 | K101: 10 | L101: 9.83 | N101: =$E$14 -> 6.5 | P101: CPT2 修正正答率 | Q101: SRT | R101: 99.9 | S101: 0.4 | T101: 100 | U101: 99.5 | W101: 100 | X101: 100 | Y101: 9.99 | Z101: 10 | AA101: 9.95 | AC101: =AC102+1 -> 2.5 | AF101: VC 3 的中率 | AG101: 100 | AH101: 9.99 | AI101: 10 | AJ101: 9.91 | AL101: 2.5
A102: VC 3 | B102: VC 3 所要時間 | C102: 68.6 | D102: 8.7 | E102: 77.3 | F102: 59.9 | H102: 210 | I102: 210 | J102: 3.266666667 | K102: 3.680952381 | L102: 2.852380952 | N102: =$E$15 -> 5.5 | Q102: X | R102: 99.7 | S102: 0.6 | T102: 100 | U102: 99.1 | W102: 100 | X102: 100 | Y102: 9.97 | Z102: 10 | AA102: 9.91 | AC102: =AC103+1 -> 1.5 | AE102: VC か | AF102: VC か 正答率 | AG102: =I106 -> 100 | AH102: 9.76 | AI102: 10 | AJ102: 9.52 | AL102: =AL103+1 -> 1.5
B103: VC 3 正答率 | C103: 99.6 | D103: 0.6 | E103: 100 | F103: 99 | H103: 100 | I103: 100 | J103: =C103/I103*10 -> 9.96 | K103: =E103/I103*10 -> 10 | L103: =F103/I103*10 -> 9.9 | N103: =$E$16 -> 4.5 | Q103: AX | R103: 97.6 | S103: 3.6 | T103: 100 | U103: 94 | W103: 100 | X103: 100 | Y103: 9.76 | Z103: 10 | AA103: 9.4 | AC103: 0.5 | AF103: VC か 的中率 | AG103: 100 | AH103: 9.96 | AI103: 10 | AJ103: 9.8 | AL103: 0.5
B104: VC 3 的中率 | C104: 99.9 | D104: 0.8 | E104: 100 | F104: 99.1 | H104: 100 | I104: 100 | J104: 9.99 | K104: 10 | L104: 9.91 | N104: =$E$17 -> 3.5 | P104: CPT2 変動係数 | Q104: SRT | R104: 12.2 | S104: 4.1 | T104: 16.3 | U104: 8.1 | W104: 30 | X104: 30 | Y104: 4.066666667 | Z104: 5.433333333 | AA104: 2.7 | AC104: =AC105+1 -> 2.5
A105: VC か | B105: VC か 所要時間 | C105: 89.8 | D105: 14 | E105: 103.8 | F105: 75.8 | H105: 210 | I105: 210 | J105: 4.276190476 | K105: 4.942857143 | L105: 3.60952381 | N105: =$E$18 -> 2.5 | Q105: X | R105: 12.2 | S105: 2.8 | T105: 15 | U105: 9.4 | W105: 30 | X105: 30 | Y105: 4.066666667 | Z105: 5 | AA105: 3.133333333 | AC105: =AC106+1 -> 1.5 | AE105: VC 所要時間 | AF105: VC△ | AG105: =I99 -> 210 | AH105: =J99 -> 2.004761905 | AI105: =K99 -> 2.314285714 | AJ105: =L99 -> 1.695238095 | AL105: =AL106+1 -> 3.5
B106: VC か 正答率 | C106: 97.6 | D106: 2.4 | E106: 100 | F106: 95.2 | H106: 100 | I106: 100 | J106: 9.76 | K106: 10 | L106: 9.52 | N106: =$E$19 -> 1.5 | Q106: AX | R106: 14.6 | S106: 4.5 | T106: 19.1 | U106: 10.1 | W106: 30 | X106: 30 | Y106: 4.866666667 | Z106: 6.366666667 | AA106: 3.366666667 | AC106: 0.5 | AF106: VC※ | AG106: =I99 -> 210 | AH106: =J99 -> 2.004761905 | AI106: =K99 -> 2.314285714 | AJ106: =L99 -> 1.695238095 | AL106: =AL107+1 -> 2.5
B107: VC か 的中率 | C107: 99.6 | D107: 1.6 | E107: 100 | F107: 98 | H107: 100 | I107: 100 | J107: 9.96 | K107: 10 | L107: 9.8 | N107: =$E$20 -> 0.5 | AF107: VC 3 | AG107: =I102 -> 210 | AH107: =J102 -> 3.266666667 | AI107: =K102 -> 3.680952381 | AJ107: =L102 -> 2.852380952 | AL107: =AL108+1 -> 1.5
A108: AD | B108: AD 正答率 | C108: 97.1 | D108: 3.5 | E108: 100 | F108: 93.6 | G108: 94 | H108: 100 | I108: 100 | J108: 9.71 | K108: 10 | L108: 9.36 | M108: =G108/I108*10 -> 9.4 | N108: =$E$21 -> 5.5 | AF108: VC か | AG108: =I105 -> 210 | AH108: =J105 -> 4.276190476 | AI108: =K105 -> 4.942857143 | AJ108: =L105 -> 3.60952381 | AL108: 0.5
B109: AD 的中率 | C109: 97.5 | D109: 3.4 | E109: 100 | F109: 94.1 | G109: 94 | H109: 100 | I109: 100 | J109: 9.75 | K109: 10 | L109: 9.41 | M109: 9.4 | N109: =$E$22 -> 4.5
A110: MU正答率 | B110: MU 3スパン | C110: 89.8 | D110: 8.1 | E110: 97.9 | F110: 81.7 | G110: 81 | H110: 100 | I110: 100 | J110: 8.98 | K110: 9.79 | L110: 8.17 | M110: 8.1 | N110: =$E$23 -> 3.5
B111: MU 4スパン | C111: 75.1 | D111: 15.5 | E111: 90.6 | F111: 59.6 | G111: 63 | H111: 100 | I111: 100 | J111: 7.51 | K111: 9.06 | L111: 5.96 | M111: 6.3 | N111: =$E$24 -> 2.5
A112: PASAT正答率 | B112: PASAT 2秒 | C112: 80.2 | D112: 14.3 | E112: 94.5 | F112: 65.9 | G112: 52 | H112: 100 | I112: 100 | J112: 8.02 | K112: 9.45 | L112: 6.59 | M112: 5.2 | N112: =$E$25 -> 1.5
B113: PASAT 1秒 | C113: 47.9 | D113: 12 | E113: 59.9 | F113: 35.9 | G113: 32 | H113: 100 | I113: 100 | J113: 4.79 | K113: 5.99 | L113: 3.59 | M113: 3.2 | N113: =$E$26 -> 0.5
A114: CPT2 | B114: SRT 平均 | C114: =C85 -> 298.1 | D114: 37.9 | E114: 336 | F114: 260.2 | H114: 800 | I114: 800 | J114: =C114/I114*800 -> 298.1 | K114: =E114/I114*800 -> 336 | L114: =F114/I114*800 -> 260.2 | N114: =$E$27 -> 2.5
B115: X 平均 | C115: 458.7 | D115: 46.3 | E115: 505 | F115: 412.4 | H115: 800 | I115: 800 | J115: =C115/I115*800 -> 458.7 | K115: =E115/I115*800 -> 505 | L115: =F115/I115*800 -> 412.4 | N115: =$E$28 -> 1.5
B116: AX 平均 | C116: 438.6 | D116: 55.1 | E116: 493.7 | F116: 383.5 | H116: 800 | I116: 800 | J116: =C116/I116*800 -> 438.6 | K116: =E116/I116*800 -> 493.7 | L116: =F116/I116*800 -> 383.5 | N116: =$E$29 -> 0.5
A119: M±SD | B119: 1 | C119: 入力値 | J119: グラフ出力 | R119: 入力値 | Y119: グラフ出力(左記の入力値を変換) | AH119: グラフ出力(左記の入力値を変換)
A120: 50代 | C120: 平均 | D120: SD | E120: SD上 | F120: SD下 | G120: cutoff | H120: 最大値 | I120: 最大値 | J120: 平均 | K120: SD上 | L120: SD下 | M120: cutoff | N120: 縦軸 | P120: 50代 | R120: 平均 | S120: SD | T120: SD上 | U120: SD下 | V120: cutoff | W120: 最大値 | X120: 最大値 | Y120: 平均 | Z120: SD上 | AA120: SD下 | AB120: cutoff | AC120: 縦軸 | AE120: 50代 | AG120: 最大値 | AH120: 平均 | AI120: SD上 | AJ120: SD下 | AK120: cutoff | AL120: 縦軸
A121: DigitSpan | B121: forward | C121: 6.4 | D121: 1.3 | E121: =IF(C121+($B$119*D121)>H121,H121,C121+($B$119*D121)) -> 7.7 | F121: =IF(C121-($B$119*D121)<0,0,C121-($B$119*D121)) -> 5.1 | G121: 5 | H121: 10 | I121: 10 | J121: =C121/I121*10 -> 6.4 | K121: =E121/I121*10 -> 7.7 | L121: =F121/I121*10 -> 5.1 | M121: =G121/I121*10 -> 5 | N121: =$E$5 -> 15.5 | P121: CPT2 誤反応 | Q121: SRT | T121: =IF(R121+($B$119*S121)>W121,W121,R121+($B$119*S121)) -> 0 | U121: =IF(R121-($B$119*S121)<0,0,R121-($B$119*S121)) -> 0 | V121: 4 | W121: 20 | X121: =W121 -> 20 | Y121: =R121/X121*10 -> 0 | Z121: =T121/X121*10 -> 0 | AA121: =U121/X121*10 -> 0 | AB121: =V121/X121*10 -> 2 | AC121: =AC122+1 -> 2.5 | AE121: DigitSpan | AF121: forward | AG121: =I121 -> 10 | AH121: 6.4 | AI121: 7.7 | AJ121: 5.1 | AK121: 5 | AL121: =AL122+1 -> 11.5
B122: backward | C122: 4.4 | D122: 0.9 | E122: =IF(C122+($B$119*D122)>H122,H122,C122+($B$119*D122)) -> 5.3 | F122: =IF(C122-($B$119*D122)<0,0,C122-($B$119*D122)) -> 3.5 | G122: 3 | H122: 10 | I122: 10 | J122: 4.4 | K122: 5.3 | L122: 3.5 | M122: =G122/I122*10 -> 3 | N122: =$E$6 -> 14.5 | Q122: X | T122: =IF(R122+($B$119*S122)>W122,W122,R122+($B$119*S122)) -> 0 | U122: =IF(R122-($B$119*S122)<0,0,R122-($B$119*S122)) -> 0 | V122: 10 | W122: 20 | X122: =W122 -> 20 | Y122: =R122/X122*10 -> 0 | Z122: =T122/X122*10 -> 0 | AA122: =U122/X122*10 -> 0 | AB122: =V122/X122*10 -> 5 | AC122: =AC123+1 -> 1.5 | AF122: backward | AG122: 10 | AH122: 4.4 | AI122: 5.3 | AJ122: 3.5 | AK122: 3 | AL122: 10.5
A123: Tappimg Span | B123: forward | C123: 5.8 | D123: 1 | E123: 6.8 | F123: 4.8 | G123: 4 | H123: 10 | I123: 10 | J123: 5.8 | K123: 6.8 | L123: 4.8 | M123: =G123/I123*10 -> 4 | N123: =$E$7 -> 13.5 | Q123: AX | T123: 0 | U123: 0 | V123: 11 | W123: 20 | X123: 20 | Y123: 0 | Z123: =T123/X123*10 -> 0 | AA123: 0 | AB123: =V123/X123*10 -> 5.5 | AC123: 0.5 | AE123: Tappimg Span | AF123: forward | AG123: 10 | AH123: 5.8 | AI123: 6.8 | AJ123: 4.8 | AK123: 4 | AL123: 9.5
B124: backward | C124: 4.9 | D124: 1.2 | E124: 6.1 | F124: 3.7 | G124: 4 | H124: 10 | I124: 10 | J124: 4.9 | K124: 6.1 | L124: 3.7 | M124: =G124/I124*10 -> 4 | N124: =$E$8 -> 12.5 | P124: CPT2 正答率 | Q124: SRT | R124: 99.7 | S124: 0.7 | T124: 100 | U124: 99 | W124: 100 | X124: 100 | Y124: 9.97 | Z124: =T124/X124*10 -> 10 | AA124: 9.9 | AC124: =AC125+1 -> 2.5 | AF124: backward | AG124: 10 | AH124: 4.9 | AI124: 6.1 | AJ124: 3.7 | AK124: 4 | AL124: 8.5
A125: VC図形△ | B125: VC△ 所要時間 | C125: 40.7 | D125: 7.6 | E125: 48.3 | F125: 33.1 | H125: 210 | I125: 210 | J125: 1.938095238 | K125: 2.3 | L125: 1.576190476 | N125: =$E$9 -> 11.5 | Q125: X | R125: 99.9 | S125: 0.5 | T125: 100 | U125: 99.4 | W125: 100 | X125: 100 | Y125: 9.99 | Z125: 10 | AA125: 9.94 | AC125: =AC126+1 -> 1.5 | AE125: VC図形△ | AF125: VC△ 正答率 | AG125: =I126 -> 100 | AH125: 9.85 | AI125: 10 | AJ125: 9.63 | AL125: 7.5
B126: VC△ 正答率 | C126: 98.5 | D126: 2.2 | E126: 100 | F126: 96.3 | H126: 100 | I126: 100 | J126: 9.85 | K126: 10 | L126: 9.63 | N126: =$E$10 -> 10.5 | Q126: AX | R126: 97.9 | S126: 3.6 | T126: 100 | U126: 94.3 | W126: 100 | X126: 100 | Y126: 9.79 | Z126: 10 | AA126: 9.43 | AC126: 0.5 | AF126: VC△ 的中率 | AG126: 100 | AH126: 9.96 | AI126: 10 | AJ126: 9.81 | AL126: 6.5
B127: VC△ 的中率 | C127: 99.6 | D127: 1.5 | E127: 100 | F127: 98.1 | H127: 100 | I127: 100 | J127: 9.96 | K127: 10 | L127: 9.81 | N127: =$E$11 -> 9.5 | P127: CPT2 的中率 | Q127: SRT | R127: 99.8 | S127: 0.6 | T127: 100 | U127: 99.2 | W127: 100 | X127: 100 | Y127: 9.98 | Z127: 10 | AA127: 9.92 | AC127: =AC128+1 -> 2.5 | AE127: VC図形※ | AF127: VC※ 正答率 | AG127: =I129 -> 100 | AH127: 10 | AI127: 10 | AJ127: 10 | AL127: 5.5
A128: VC図形※ | B128: VC※ 所要時間 | C128: 47.8 | D128: 11.1 | E128: 58.9 | F128: 36.7 | H128: 210 | I128: 210 | J128: 2.276190476 | K128: 2.804761905 | L128: 1.747619048 | N128: =$E$12 -> 8.5 | Q128: X | R128: 99.3 | S128: 1.5 | T128: 100 | U128: 97.8 | W128: 100 | X128: 100 | Y128: 9.93 | Z128: 10 | AA128: 9.78 | AC128: =AC129+1 -> 1.5 | AF128: VC※ 的中率 | AG128: 100 | AH128: 9.98 | AI128: 10 | AJ128: 9.89 | AL128: 4.5
B129: VC※ 正答率 | C129: 100 | D129: 0 | E129: 100 | F129: 100 | H129: 100 | I129: 100 | J129: 10 | K129: 10 | L129: 10 | N129: =$E$13 -> 7.5 | Q129: AX | R129: 97.5 | S129: 2.9 | T129: 100 | U129: 94.6 | W129: 100 | X129: 100 | Y129: 9.75 | Z129: 10 | AA129: 9.46 | AC129: 0.5 | AE129: VC 3 | AF129: VC 3 正答率 | AG129: =I132 -> 100 | AH129: 9.92 | AI129: 10 | AJ129: 9.81 | AL129: 3.5
B130: VC※ 的中率 | C130: 99.8 | D130: 0.9 | E130: 100 | F130: 98.9 | H130: 100 | I130: 100 | J130: 9.98 | K130: 10 | L130: 9.89 | N130: =$E$14 -> 6.5 | P130: CPT2 修正正答率 | Q130: SRT | R130: 99.9 | S130: 0.4 | T130: 100 | U130: 99.5 | W130: 100 | X130: 100 | Y130: 9.99 | Z130: 10 | AA130: 9.95 | AC130: =AC131+1 -> 2.5 | AF130: VC 3 的中率 | AG130: 100 | AH130: 10 | AI130: 10 | AJ130: 10 | AL130: 2.5
A131: VC 3 | B131: VC 3 所要時間 | C131: 71 | D131: 9.4 | E131: 80.4 | F131: 61.6 | H131: 210 | I131: 210 | J131: 3.380952381 | K131: 3.828571429 | L131: 2.933333333 | N131: =$E$15 -> 5.5 | Q131: X | R131: 99.7 | S131: 0.6 | T131: 100 | U131: 99.1 | W131: 100 | X131: 100 | Y131: 9.97 | Z131: 10 | AA131: 9.91 | AC131: =AC132+1 -> 1.5 | AE131: VC か | AF131: VC か 正答率 | AG131: =I135 -> 100 | AH131: 9.62 | AI131: 9.92 | AJ131: 9.32 | AL131: =AL132+1 -> 1.5
B132: VC 3 正答率 | C132: 99.2 | D132: 1.1 | E132: 100 | F132: 98.1 | H132: 100 | I132: 100 | J132: =C132/I132*10 -> 9.92 | K132: =E132/I132*10 -> 10 | L132: =F132/I132*10 -> 9.81 | N132: =$E$16 -> 4.5 | Q132: AX | R132: 97.6 | S132: 3.6 | T132: 100 | U132: 94 | W132: 100 | X132: 100 | Y132: 9.76 | Z132: 10 | AA132: 9.4 | AC132: 0.5 | AF132: VC か 的中率 | AG132: 100 | AH132: 9.94 | AI132: 10 | AJ132: 9.65 | AL132: 0.5
B133: VC 3 的中率 | C133: 100 | D133: 0 | E133: 100 | F133: 100 | H133: 100 | I133: 100 | J133: 10 | K133: 10 | L133: 10 | N133: =$E$17 -> 3.5 | P133: CPT2 変動係数 | Q133: SRT | R133: 12.2 | S133: 4.1 | T133: 16.3 | U133: 8.1 | W133: 30 | X133: 30 | Y133: 4.066666667 | Z133: 5.433333333 | AA133: 2.7 | AC133: =AC134+1 -> 2.5
A134: VC か | B134: VC か 所要時間 | C134: 94.7 | D134: 14.7 | E134: 109.4 | F134: 80 | H134: 210 | I134: 210 | J134: 4.50952381 | K134: 5.20952381 | L134: 3.80952381 | N134: =$E$18 -> 2.5 | Q134: X | R134: 12.2 | S134: 2.8 | T134: 15 | U134: 9.4 | W134: 30 | X134: 30 | Y134: 4.066666667 | Z134: 5 | AA134: 3.133333333 | AC134: =AC135+1 -> 1.5 | AE134: VC 所要時間 | AF134: VC△ | AG134: =I128 -> 210 | AH134: =J128 -> 2.276190476 | AI134: =K128 -> 2.804761905 | AJ134: =L128 -> 1.747619048 | AL134: =AL135+1 -> 3.5
B135: VC か 正答率 | C135: 96.2 | D135: 3 | E135: 99.2 | F135: 93.2 | H135: 100 | I135: 100 | J135: 9.62 | K135: 9.92 | L135: 9.32 | N135: =$E$19 -> 1.5 | Q135: AX | R135: 14.6 | S135: 4.5 | T135: 19.1 | U135: 10.1 | W135: 30 | X135: 30 | Y135: 4.866666667 | Z135: 6.366666667 | AA135: 3.366666667 | AC135: 0.5 | AF135: VC※ | AG135: =I128 -> 210 | AH135: =J128 -> 2.276190476 | AI135: =K128 -> 2.804761905 | AJ135: =L128 -> 1.747619048 | AL135: =AL136+1 -> 2.5
B136: VC か 的中率 | C136: 99.4 | D136: 2.9 | E136: 100 | F136: 96.5 | H136: 100 | I136: 100 | J136: 9.94 | K136: 10 | L136: 9.65 | N136: =$E$20 -> 0.5 | AF136: VC 3 | AG136: =I131 -> 210 | AH136: =J131 -> 3.380952381 | AI136: =K131 -> 3.828571429 | AJ136: =L131 -> 2.933333333 | AL136: =AL137+1 -> 1.5
A137: AD | B137: AD 正答率 | C137: 96.8 | D137: 3.9 | E137: 100 | F137: 92.9 | G137: 94 | H137: 100 | I137: 100 | J137: 9.68 | K137: 10 | L137: 9.29 | M137: =G137/I137*10 -> 9.4 | N137: =$E$21 -> 5.5 | AF137: VC か | AG137: =I134 -> 210 | AH137: =J134 -> 4.50952381 | AI137: =K134 -> 5.20952381 | AJ137: =L134 -> 3.80952381 | AL137: 0.5
B138: AD 的中率 | C138: 91.9 | D138: 8.2 | E138: 100 | F138: 83.7 | G138: 91 | H138: 100 | I138: 100 | J138: 9.19 | K138: 10 | L138: 8.37 | M138: 9.1 | N138: =$E$22 -> 4.5
A139: MU正答率 | B139: MU 3スパン | C139: 81.2 | D139: 12.9 | E139: 94.1 | F139: 68.3 | G139: 69 | H139: 100 | I139: 100 | J139: 8.12 | K139: 9.41 | L139: 6.83 | M139: 6.9 | N139: =$E$23 -> 3.5
B140: MU 4スパン | C140: 60.2 | D140: 17.4 | E140: 77.6 | F140: 42.8 | G140: 44 | H140: 100 | I140: 100 | J140: 6.02 | K140: 7.76 | L140: 4.28 | M140: 4.4 | N140: =$E$24 -> 2.5
A141: PASAT正答率 | B141: PASAT 2秒 | C141: 64.6 | D141: 23.4 | E141: 88 | F141: 41.2 | G141: 40 | H141: 100 | I141: 100 | J141: 6.46 | K141: 8.8 | L141: 4.12 | M141: 4 | N141: =$E$25 -> 1.5
B142: PASAT 1秒 | C142: 40.2 | D142: 13.5 | E142: 53.7 | F142: 26.7 | G142: 27 | H142: 100 | I142: 100 | J142: 4.02 | K142: 5.37 | L142: 2.67 | M142: 2.7 | N142: =$E$26 -> 0.5
A143: CPT2 | B143: SRT 平均 | C143: =C114 -> 298.1 | D143: 37.9 | E143: 336 | F143: 260.2 | H143: 800 | I143: 800 | J143: =C143/I143*800 -> 298.1 | K143: =E143/I143*800 -> 336 | L143: =F143/I143*800 -> 260.2 | N143: =$E$27 -> 2.5
B144: X 平均 | C144: 458.7 | D144: 46.3 | E144: 505 | F144: 412.4 | H144: 800 | I144: 800 | J144: =C144/I144*800 -> 458.7 | K144: =E144/I144*800 -> 505 | L144: =F144/I144*800 -> 412.4 | N144: =$E$28 -> 1.5
B145: AX 平均 | C145: 438.6 | D145: 55.1 | E145: 493.7 | F145: 383.5 | H145: 800 | I145: 800 | J145: =C145/I145*800 -> 438.6 | K145: =E145/I145*800 -> 493.7 | L145: =F145/I145*800 -> 383.5 | N145: =$E$29 -> 0.5
A148: M±SD | B148: 1 | C148: 入力値 | J148: グラフ出力 | R148: 入力値 | Y148: グラフ出力(左記の入力値を変換) | AH148: グラフ出力(左記の入力値を変換)
A149: 60代 | C149: 平均 | D149: SD | E149: SD上 | F149: SD下 | G149: cutoff | H149: 最大値 | I149: 最大値 | J149: 平均 | K149: SD上 | L149: SD下 | M149: cutoff | N149: 縦軸 | P149: 60代 | R149: 平均 | S149: SD | T149: SD上 | U149: SD下 | V149: cutoff | W149: 最大値 | X149: 最大値 | Y149: 平均 | Z149: SD上 | AA149: SD下 | AB149: cutoff | AC149: 縦軸 | AE149: 60代 | AG149: 最大値 | AH149: 平均 | AI149: SD上 | AJ149: SD下 | AK149: cutoff | AL149: 縦軸
A150: DigitSpan | B150: forward | C150: 5.8 | D150: 1 | E150: =IF(C150+($B$148*D150)>H150,H150,C150+($B$148*D150)) -> 6.8 | F150: =IF(C150-($B$148*D150)<0,0,C150-($B$148*D150)) -> 4.8 | G150: 4 | H150: 10 | I150: 10 | J150: =C150/I150*10 -> 5.8 | K150: =E150/I150*10 -> 6.8 | L150: =F150/I150*10 -> 4.8 | M150: =G150/I150*10 -> 4 | N150: =$E$5 -> 15.5 | P150: CPT2 誤反応 | Q150: SRT | T150: =IF(R150+($B$148*S150)>W150,W150,R150+($B$148*S150)) -> 0 | U150: =IF(R150-($B$148*S150)<0,0,R150-($B$148*S150)) -> 0 | V150: 4 | W150: 20 | X150: =W150 -> 20 | Y150: =R150/X150*10 -> 0 | Z150: =T150/X150*10 -> 0 | AA150: =U150/X150*10 -> 0 | AB150: =V150/X150*10 -> 2 | AC150: =AC151+1 -> 2.5 | AE150: DigitSpan | AF150: forward | AG150: =I150 -> 10 | AH150: 5.8 | AI150: 6.8 | AJ150: 4.8 | AK150: 4 | AL150: =AL151+1 -> 11.5
B151: backward | C151: 4.3 | D151: 0.9 | E151: =IF(C151+($B$148*D151)>H151,H151,C151+($B$148*D151)) -> 5.2 | F151: =IF(C151-($B$148*D151)<0,0,C151-($B$148*D151)) -> 3.4 | G151: 3 | H151: 10 | I151: 10 | J151: 4.3 | K151: 5.2 | L151: 3.4 | M151: =G151/I151*10 -> 3 | N151: =$E$6 -> 14.5 | Q151: X | T151: =IF(R151+($B$148*S151)>W151,W151,R151+($B$148*S151)) -> 0 | U151: =IF(R151-($B$148*S151)<0,0,R151-($B$148*S151)) -> 0 | V151: 10 | W151: 20 | X151: =W151 -> 20 | Y151: =R151/X151*10 -> 0 | Z151: =T151/X151*10 -> 0 | AA151: =U151/X151*10 -> 0 | AB151: =V151/X151*10 -> 5 | AC151: =AC152+1 -> 1.5 | AF151: backward | AG151: 10 | AH151: 4.3 | AI151: 5.2 | AJ151: 3.4 | AK151: 3 | AL151: 10.5
A152: Tappimg Span | B152: forward | C152: 5.6 | D152: 0.8 | E152: 6.4 | F152: 4.8 | G152: 4 | H152: 10 | I152: 10 | J152: 5.6 | K152: 6.4 | L152: 4.8 | M152: =G152/I152*10 -> 4 | N152: =$E$7 -> 13.5 | Q152: AX | T152: 0 | U152: 0 | V152: 11 | W152: 20 | X152: 20 | Y152: 0 | Z152: =T152/X152*10 -> 0 | AA152: 0 | AB152: =V152/X152*10 -> 5.5 | AC152: 0.5 | AE152: Tappimg Span | AF152: forward | AG152: 10 | AH152: 5.6 | AI152: 6.4 | AJ152: 4.8 | AK152: 4 | AL152: 9.5
B153: backward | C153: 4.8 | D153: 1.5 | E153: 6.3 | F153: 3.3 | G153: 4 | H153: 10 | I153: 10 | J153: 4.8 | K153: 6.3 | L153: 3.3 | M153: =G153/I153*10 -> 4 | N153: =$E$8 -> 12.5 | P153: CPT2 正答率 | Q153: SRT | R153: 99.7 | S153: 0.7 | T153: 100 | U153: 99 | W153: 100 | X153: 100 | Y153: 9.97 | Z153: =T153/X153*10 -> 10 | AA153: 9.9 | AC153: =AC154+1 -> 2.5 | AF153: backward | AG153: 10 | AH153: 4.8 | AI153: 6.3 | AJ153: 3.3 | AK153: 4 | AL153: 8.5
A154: VC図形△ | B154: VC△ 所要時間 | C154: 45.9 | D154: 10 | E154: 55.9 | F154: 35.9 | H154: 210 | I154: 210 | J154: 2.185714286 | K154: 2.661904762 | L154: 1.70952381 | N154: =$E$9 -> 11.5 | Q154: X | R154: 99.9 | S154: 0.5 | T154: 100 | U154: 99.4 | W154: 100 | X154: 100 | Y154: 9.99 | Z154: 10 | AA154: 9.94 | AC154: =AC155+1 -> 1.5 | AE154: VC図形△ | AF154: VC△ 正答率 | AG154: =I155 -> 100 | AH154: 9.75 | AI154: 9.97 | AJ154: 9.53 | AL154: 7.5
B155: VC△ 正答率 | C155: 97.5 | D155: 2.2 | E155: 99.7 | F155: 95.3 | H155: 100 | I155: 100 | J155: 9.75 | K155: 9.97 | L155: 9.53 | N155: =$E$10 -> 10.5 | Q155: AX | R155: 97.9 | S155: 3.6 | T155: 100 | U155: 94.3 | W155: 100 | X155: 100 | Y155: 9.79 | Z155: 10 | AA155: 9.43 | AC155: 0.5 | AF155: VC△ 的中率 | AG155: 100 | AH155: 9.98 | AI155: 10 | AJ155: 9.93 | AL155: 6.5
B156: VC△ 的中率 | C156: 99.8 | D156: 0.5 | E156: 100 | F156: 99.3 | H156: 100 | I156: 100 | J156: 9.98 | K156: 10 | L156: 9.93 | N156: =$E$11 -> 9.5 | P156: CPT2 的中率 | Q156: SRT | R156: 99.8 | S156: 0.6 | T156: 100 | U156: 99.2 | W156: 100 | X156: 100 | Y156: 9.98 | Z156: 10 | AA156: 9.92 | AC156: =AC157+1 -> 2.5 | AE156: VC図形※ | AF156: VC※ 正答率 | AG156: =I158 -> 100 | AH156: 9.95 | AI156: 10 | AJ156: 9.85 | AL156: 5.5
A157: VC図形※ | B157: VC※ 所要時間 | C157: 52.8 | D157: 11.8 | E157: 64.6 | F157: 41 | H157: 210 | I157: 210 | J157: 2.514285714 | K157: 3.076190476 | L157: 1.952380952 | N157: =$E$12 -> 8.5 | Q157: X | R157: 99.3 | S157: 1.5 | T157: 100 | U157: 97.8 | W157: 100 | X157: 100 | Y157: 9.93 | Z157: 10 | AA157: 9.78 | AC157: =AC158+1 -> 1.5 | AF157: VC※ 的中率 | AG157: 100 | AH157: 9.99 | AI157: 10 | AJ157: 9.95 | AL157: 4.5
B158: VC※ 正答率 | C158: 99.5 | D158: 1 | E158: 100 | F158: 98.5 | H158: 100 | I158: 100 | J158: 9.95 | K158: 10 | L158: 9.85 | N158: =$E$13 -> 7.5 | Q158: AX | R158: 97.5 | S158: 2.9 | T158: 100 | U158: 94.6 | W158: 100 | X158: 100 | Y158: 9.75 | Z158: 10 | AA158: 9.46 | AC158: 0.5 | AE158: VC 3 | AF158: VC 3 正答率 | AG158: =I161 -> 100 | AH158: 9.91 | AI158: 10 | AJ158: 9.8 | AL158: 3.5
B159: VC※ 的中率 | C159: 99.9 | D159: 0.4 | E159: 100 | F159: 99.5 | H159: 100 | I159: 100 | J159: 9.99 | K159: 10 | L159: 9.95 | N159: =$E$14 -> 6.5 | P159: CPT2 修正正答率 | Q159: SRT | R159: 99.9 | S159: 0.4 | T159: 100 | U159: 99.5 | W159: 100 | X159: 100 | Y159: 9.99 | Z159: 10 | AA159: 9.95 | AC159: =AC160+1 -> 2.5 | AF159: VC 3 的中率 | AG159: 100 | AH159: 10 | AI159: 10 | AJ159: 9.9 | AL159: 2.5
A160: VC 3 | B160: VC 3 所要時間 | C160: 80.8 | D160: 14.3 | E160: 95.1 | F160: 66.5 | H160: 210 | I160: 210 | J160: 3.847619048 | K160: 4.528571429 | L160: 3.166666667 | N160: =$E$15 -> 5.5 | Q160: X | R160: 99.7 | S160: 0.6 | T160: 100 | U160: 99.1 | W160: 100 | X160: 100 | Y160: 9.97 | Z160: 10 | AA160: 9.91 | AC160: =AC161+1 -> 1.5 | AE160: VC か | AF160: VC か 正答率 | AG160: =I164 -> 100 | AH160: 9.61 | AI160: 9.93 | AJ160: 9.29 | AL160: =AL161+1 -> 1.5
B161: VC 3 正答率 | C161: 99.1 | D161: 1.1 | E161: 100 | F161: 98 | H161: 100 | I161: 100 | J161: =C161/I161*10 -> 9.91 | K161: =E161/I161*10 -> 10 | L161: =F161/I161*10 -> 9.8 | N161: =$E$16 -> 4.5 | Q161: AX | R161: 97.6 | S161: 3.6 | T161: 100 | U161: 94 | W161: 100 | X161: 100 | Y161: 9.76 | Z161: 10 | AA161: 9.4 | AC161: 0.5 | AF161: VC か 的中率 | AG161: 100 | AH161: 9.99 | AI161: 10 | AJ161: 9.96 | AL161: 0.5
B162: VC 3 的中率 | C162: 100 | D162: 1 | E162: 100 | F162: 99 | H162: 100 | I162: 100 | J162: 10 | K162: 10 | L162: 9.9 | N162: =$E$17 -> 3.5 | P162: CPT2 変動係数 | Q162: SRT | R162: 12.2 | S162: 4.1 | T162: 16.3 | U162: 8.1 | W162: 30 | X162: 30 | Y162: 4.066666667 | Z162: 5.433333333 | AA162: 2.7 | AC162: =AC163+1 -> 2.5
A163: VC か | B163: VC か 所要時間 | C163: 104.1 | D163: 18.5 | E163: 122.6 | F163: 85.6 | H163: 210 | I163: 210 | J163: 4.957142857 | K163: 5.838095238 | L163: 4.076190476 | N163: =$E$18 -> 2.5 | Q163: X | R163: 12.2 | S163: 2.8 | T163: 15 | U163: 9.4 | W163: 30 | X163: 30 | Y163: 4.066666667 | Z163: 5 | AA163: 3.133333333 | AC163: =AC164+1 -> 1.5 | AE163: VC 所要時間 | AF163: VC△ | AG163: =I157 -> 210 | AH163: =J157 -> 2.514285714 | AI163: =K157 -> 3.076190476 | AJ163: =L157 -> 1.952380952 | AL163: =AL164+1 -> 3.5
B164: VC か 正答率 | C164: 96.1 | D164: 3.2 | E164: 99.3 | F164: 92.9 | H164: 100 | I164: 100 | J164: 9.61 | K164: 9.93 | L164: 9.29 | N164: =$E$19 -> 1.5 | Q164: AX | R164: 14.6 | S164: 4.5 | T164: 19.1 | U164: 10.1 | W164: 30 | X164: 30 | Y164: 4.866666667 | Z164: 6.366666667 | AA164: 3.366666667 | AC164: 0.5 | AF164: VC※ | AG164: =I157 -> 210 | AH164: =J157 -> 2.514285714 | AI164: =K157 -> 3.076190476 | AJ164: =L157 -> 1.952380952 | AL164: =AL165+1 -> 2.5
B165: VC か 的中率 | C165: 99.9 | D165: 0.3 | E165: 100 | F165: 99.6 | H165: 100 | I165: 100 | J165: 9.99 | K165: 10 | L165: 9.96 | N165: =$E$20 -> 0.5 | AF165: VC 3 | AG165: =I160 -> 210 | AH165: =J160 -> 3.847619048 | AI165: =K160 -> 4.528571429 | AJ165: =L160 -> 3.166666667 | AL165: =AL166+1 -> 1.5
A166: AD | B166: AD 正答率 | C166: 96.7 | D166: 4 | E166: 100 | F166: 92.7 | G166: 94 | H166: 100 | I166: 100 | J166: 9.67 | K166: 10 | L166: 9.27 | M166: =G166/I166*10 -> 9.4 | N166: =$E$21 -> 5.5 | AF166: VC か | AG166: =I163 -> 210 | AH166: =J163 -> 4.957142857 | AI166: =K163 -> 5.838095238 | AJ166: =L163 -> 4.076190476 | AL166: 0.5
B167: AD 的中率 | C167: 75.2 | D167: 23.4 | E167: 98.6 | F167: 51.8 | H167: 100 | I167: 100 | J167: 7.52 | K167: 9.86 | L167: 5.18 | M167: =IF(G167="","",G167/I167*10) ->  | N167: =$E$22 -> 4.5 | P167: =M166 -> 9.4 | Q167: =N166 -> 5.5
A168: MU正答率 | B168: MU 3スパン | C168: 73 | D168: 16.6 | E168: 89.6 | F168: 56.4 | G168: 56 | H168: 100 | I168: 100 | J168: 7.3 | K168: 8.96 | L168: 5.64 | M168: =G168/I168*10 -> 5.6 | N168: =$E$23 -> 3.5 | P168: =M168 -> 5.6 | Q168: 3.5
B169: MU 4スパン | C169: 57 | D169: 20.3 | E169: 77.3 | F169: 36.7 | G169: 38 | H169: 100 | I169: 100 | J169: 5.7 | K169: 7.73 | L169: 3.67 | M169: =G169/I169*10 -> 3.8 | N169: =$E$24 -> 2.5 | P169: 3.8 | Q169: 2.5
A170: PASAT正答率 | B170: PASAT 2秒 | C170: 63.1 | D170: 24.7 | E170: 87.8 | F170: 38.4 | G170: 38 | H170: 100 | I170: 100 | J170: 6.31 | K170: 8.78 | L170: 3.84 | M170: =G170/I170*10 -> 3.8 | N170: =$E$25 -> 1.5 | P170: 3.8 | Q170: 1.5
B171: PASAT 1秒 | C171: 40.3 | D171: 14.1 | E171: 54.4 | F171: 26.2 | G171: 23 | H171: 100 | I171: 100 | J171: 4.03 | K171: 5.44 | L171: 2.62 | M171: =G171/I171*10 -> 2.3 | N171: =$E$26 -> 0.5 | P171: 2.3 | Q171: 0.5
A172: CPT2 | B172: SRT 平均 | C172: =C143 -> 298.1 | D172: =D143 -> 37.9 | E172: 336 | F172: 260.2 | H172: 800 | I172: 800 | J172: =C172/I172*800 -> 298.1 | K172: =E172/I172*800 -> 336 | L172: =F172/I172*800 -> 260.2 | N172: =$E$27 -> 2.5
B173: X 平均 | C173: =C144 -> 458.7 | D173: =D144 -> 46.3 | E173: 505 | F173: 412.4 | H173: 800 | I173: 800 | J173: =C173/I173*800 -> 458.7 | K173: =E173/I173*800 -> 505 | L173: =F173/I173*800 -> 412.4 | N173: =$E$28 -> 1.5
B174: AX 平均 | C174: 493 | D174: 59.8 | E174: 552.8 | F174: 433.2 | H174: 800 | I174: 800 | J174: =C174/I174*800 -> 493 | K174: =E174/I174*800 -> 552.8 | L174: =F174/I174*800 -> 433.2 | N174: =$E$29 -> 0.5
A177: M±SD | B177: 1 | C177: 入力値 | J177: グラフ出力 | R177: 入力値 | Y177: グラフ出力(左記の入力値を変換) | AH177: グラフ出力(左記の入力値を変換)
A178: 70代 | C178: 平均 | D178: SD | E178: SD上 | F178: SD下 | G178: cutoff | H178: 最大値 | I178: 最大値 | J178: 平均 | K178: SD上 | L178: SD下 | M178: cutoff | N178: 縦軸 | P178: 70代 | R178: 平均 | S178: SD | T178: SD上 | U178: SD下 | V178: cutoff | W178: 最大値 | X178: 最大値 | Y178: 平均 | Z178: SD上 | AA178: SD下 | AB178: cutoff | AC178: 縦軸 | AE178: 70代 | AG178: 最大値 | AH178: 平均 | AI178: SD上 | AJ178: SD下 | AK178: cutoff | AL178: 縦軸
A179: DigitSpan | B179: forward | C179: 5.4 | D179: 0.8 | E179: =IF(C179+($B$177*D179)>H179,H179,C179+($B$177*D179)) -> 6.2 | F179: =IF(C179-($B$177*D179)<0,0,C179-($B$177*D179)) -> 4.6 | G179: 4 | H179: 10 | I179: 10 | J179: =C179/I179*10 -> 5.4 | K179: =E179/I179*10 -> 6.2 | L179: =F179/I179*10 -> 4.6 | M179: =G179/I179*10 -> 4 | N179: =$E$5 -> 15.5 | P179: CPT2 誤反応 | Q179: SRT | T179: =IF(R179+($B$177*S179)>W179,W179,R179+($B$177*S179)) -> 0 | U179: =IF(R179-($B$177*S179)<0,0,R179-($B$177*S179)) -> 0 | V179: 4 | W179: 20 | X179: =W179 -> 20 | Y179: =R179/X179*10 -> 0 | Z179: =T179/X179*10 -> 0 | AA179: =U179/X179*10 -> 0 | AB179: =V179/X179*10 -> 2 | AC179: =AC180+1 -> 2.5 | AE179: DigitSpan | AF179: forward | AG179: =I179 -> 10 | AH179: 5.4 | AI179: 6.2 | AJ179: 4.6 | AK179: 4 | AL179: =AL180+1 -> 11.5
B180: backward | C180: 4.1 | D180: 0.9 | E180: =IF(C180+($B$177*D180)>H180,H180,C180+($B$177*D180)) -> 5 | F180: =IF(C180-($B$177*D180)<0,0,C180-($B$177*D180)) -> 3.2 | G180: 3 | H180: 10 | I180: 10 | J180: 4.1 | K180: 5 | L180: 3.2 | M180: =G180/I180*10 -> 3 | N180: =$E$6 -> 14.5 | Q180: X | T180: =IF(R180+($B$177*S180)>W180,W180,R180+($B$177*S180)) -> 0 | U180: =IF(R180-($B$177*S180)<0,0,R180-($B$177*S180)) -> 0 | V180: 10 | W180: 20 | X180: =W180 -> 20 | Y180: =R180/X180*10 -> 0 | Z180: =T180/X180*10 -> 0 | AA180: =U180/X180*10 -> 0 | AB180: =V180/X180*10 -> 5 | AC180: =AC181+1 -> 1.5 | AF180: backward | AG180: 10 | AH180: 4.1 | AI180: 5 | AJ180: 3.2 | AK180: 3 | AL180: 10.5
A181: Tappimg Span | B181: forward | C181: 5.3 | D181: 0.9 | E181: 6.2 | F181: 4.4 | G181: 4 | H181: 10 | I181: 10 | J181: 5.3 | K181: 6.2 | L181: 4.4 | M181: =G181/I181*10 -> 4 | N181: =$E$7 -> 13.5 | Q181: AX | T181: 0 | U181: 0 | V181: 11 | W181: 20 | X181: 20 | Y181: 0 | Z181: =T181/X181*10 -> 0 | AA181: 0 | AB181: =V181/X181*10 -> 5.5 | AC181: 0.5 | AE181: Tappimg Span | AF181: forward | AG181: 10 | AH181: 5.3 | AI181: 6.2 | AJ181: 4.4 | AK181: 4 | AL181: 9.5
B182: backward | C182: 4.9 | D182: 1.2 | E182: 6.1 | F182: 3.7 | G182: 4 | H182: 10 | I182: 10 | J182: 4.9 | K182: 6.1 | L182: 3.7 | M182: =G182/I182*10 -> 4 | N182: =$E$8 -> 12.5 | P182: CPT2 正答率 | Q182: SRT | R182: 99.7 | S182: 0.7 | T182: 100 | U182: 99 | W182: 100 | X182: 100 | Y182: 9.97 | Z182: =T182/X182*10 -> 10 | AA182: 9.9 | AC182: =AC183+1 -> 2.5 | AF182: backward | AG182: 10 | AH182: 4.9 | AI182: 6.1 | AJ182: 3.7 | AK182: 4 | AL182: 8.5
A183: VC図形△ | B183: VC△ 所要時間 | C183: 58.4 | D183: 13.8 | E183: 72.2 | F183: 44.6 | H183: 210 | I183: 210 | J183: 2.780952381 | K183: 3.438095238 | L183: 2.123809524 | N183: =$E$9 -> 11.5 | Q183: X | R183: 99.9 | S183: 0.5 | T183: 100 | U183: 99.4 | W183: 100 | X183: 100 | Y183: 9.99 | Z183: 10 | AA183: 9.94 | AC183: =AC184+1 -> 1.5 | AE183: VC図形△ | AF183: VC△ 正答率 | AG183: =I184 -> 100 | AH183: 9.65 | AI183: 10 | AJ183: 9.3 | AL183: 7.5
B184: VC△ 正答率 | C184: 96.5 | D184: 3.5 | E184: 100 | F184: 93 | H184: 100 | I184: 100 | J184: 9.65 | K184: 10 | L184: 9.3 | N184: =$E$10 -> 10.5 | Q184: AX | R184: 97.9 | S184: 3.6 | T184: 100 | U184: 94.3 | W184: 100 | X184: 100 | Y184: 9.79 | Z184: 10 | AA184: 9.43 | AC184: 0.5 | AF184: VC△ 的中率 | AG184: 100 | AH184: 9.99 | AI184: 10 | AJ184: 9.94 | AL184: 6.5
B185: VC△ 的中率 | C185: 99.9 | D185: 0.5 | E185: 100 | F185: 99.4 | H185: 100 | I185: 100 | J185: 9.99 | K185: 10 | L185: 9.94 | N185: =$E$11 -> 9.5 | P185: CPT2 的中率 | Q185: SRT | R185: 99.8 | S185: 0.6 | T185: 100 | U185: 99.2 | W185: 100 | X185: 100 | Y185: 9.98 | Z185: 10 | AA185: 9.92 | AC185: =AC186+1 -> 2.5 | AE185: VC図形※ | AF185: VC※ 正答率 | AG185: =I187 -> 100 | AH185: 9.91 | AI185: 10 | AJ185: 9.78 | AL185: 5.5
A186: VC図形※ | B186: VC※ 所要時間 | C186: 67.4 | D186: 16.1 | E186: 83.5 | F186: 51.3 | H186: 210 | I186: 210 | J186: 3.20952381 | K186: 3.976190476 | L186: 2.442857143 | N186: =$E$12 -> 8.5 | Q186: X | R186: 99.3 | S186: 1.5 | T186: 100 | U186: 97.8 | W186: 100 | X186: 100 | Y186: 9.93 | Z186: 10 | AA186: 9.78 | AC186: =AC187+1 -> 1.5 | AF186: VC※ 的中率 | AG186: 100 | AH186: 10 | AI186: 10 | AJ186: 9.97 | AL186: 4.5
B187: VC※ 正答率 | C187: 99.1 | D187: 1.3 | E187: 100 | F187: 97.8 | H187: 100 | I187: 100 | J187: 9.91 | K187: 10 | L187: 9.78 | N187: =$E$13 -> 7.5 | Q187: AX | R187: 97.5 | S187: 2.9 | T187: 100 | U187: 94.6 | W187: 100 | X187: 100 | Y187: 9.75 | Z187: 10 | AA187: 9.46 | AC187: 0.5 | AE187: VC 3 | AF187: VC 3 正答率 | AG187: =I190 -> 100 | AH187: 9.85 | AI187: 10 | AJ187: 9.67 | AL187: 3.5
B188: VC※ 的中率 | C188: 100 | D188: 0.3 | E188: 100 | F188: 99.7 | H188: 100 | I188: 100 | J188: 10 | K188: 10 | L188: 9.97 | N188: =$E$14 -> 6.5 | P188: CPT2 修正正答率 | Q188: SRT | R188: 99.9 | S188: 0.4 | T188: 100 | U188: 99.5 | W188: 100 | X188: 100 | Y188: 9.99 | Z188: 10 | AA188: 9.95 | AC188: =AC189+1 -> 2.5 | AF188: VC 3 的中率 | AG188: 100 | AH188: 10 | AI188: 10 | AJ188: 9.98 | AL188: 2.5
A189: VC 3 | B189: VC 3 所要時間 | C189: 103.7 | D189: 23.2 | E189: 126.9 | F189: 80.5 | H189: 210 | I189: 210 | J189: 4.938095238 | K189: 6.042857143 | L189: 3.833333333 | N189: =$E$15 -> 5.5 | Q189: X | R189: 99.7 | S189: 0.6 | T189: 100 | U189: 99.1 | W189: 100 | X189: 100 | Y189: 9.97 | Z189: 10 | AA189: 9.91 | AC189: =AC190+1 -> 1.5 | AE189: VC か | AF189: VC か 正答率 | AG189: =I193 -> 100 | AH189: 9.54 | AI189: 9.91 | AJ189: 9.17 | AL189: =AL190+1 -> 1.5
B190: VC 3 正答率 | C190: 98.5 | D190: 1.8 | E190: 100 | F190: 96.7 | H190: 100 | I190: 100 | J190: =C190/I190*10 -> 9.85 | K190: =E190/I190*10 -> 10 | L190: =F190/I190*10 -> 9.67 | N190: =$E$16 -> 4.5 | Q190: AX | R190: 97.6 | S190: 3.6 | T190: 100 | U190: 94 | W190: 100 | X190: 100 | Y190: 9.76 | Z190: 10 | AA190: 9.4 | AC190: 0.5 | AF190: VC か 的中率 | AG190: 100 | AH190: 9.98 | AI190: 10 | AJ190: 9.92 | AL190: 0.5
B191: VC 3 的中率 | C191: 100 | D191: 0.2 | E191: 100 | F191: 99.8 | H191: 100 | I191: 100 | J191: 10 | K191: 10 | L191: 9.98 | N191: =$E$17 -> 3.5 | P191: CPT2 変動係数 | Q191: SRT | R191: 16.7 | S191: 6.2 | T191: 22.9 | U191: 10.5 | W191: 30 | X191: 30 | Y191: 5.566666667 | Z191: 7.633333333 | AA191: 3.5 | AC191: =AC192+1 -> 2.5
A192: VC か | B192: VC か 所要時間 | C192: 132.3 | D192: 24.3 | E192: 156.6 | F192: 108 | H192: 210 | I192: 210 | J192: 6.3 | K192: 7.457142857 | L192: 5.142857143 | N192: =$E$18 -> 2.5 | Q192: X | R192: 12.2 | S192: 2.8 | T192: 15 | U192: 9.4 | W192: 30 | X192: 30 | Y192: 4.066666667 | Z192: 5 | AA192: 3.133333333 | AC192: =AC193+1 -> 1.5 | AE192: VC 所要時間 | AF192: VC△ | AG192: =I186 -> 210 | AH192: =J186 -> 3.20952381 | AI192: =K186 -> 3.976190476 | AJ192: =L186 -> 2.442857143 | AL192: =AL193+1 -> 3.5
B193: VC か 正答率 | C193: 95.4 | D193: 3.7 | E193: 99.1 | F193: 91.7 | H193: 100 | I193: 100 | J193: 9.54 | K193: 9.91 | L193: 9.17 | N193: =$E$19 -> 1.5 | Q193: AX | R193: 14.6 | S193: 4.5 | T193: 19.1 | U193: 10.1 | W193: 30 | X193: 30 | Y193: 4.866666667 | Z193: 6.366666667 | AA193: 3.366666667 | AC193: 0.5 | AF193: VC※ | AG193: =I186 -> 210 | AH193: =J186 -> 3.20952381 | AI193: =K186 -> 3.976190476 | AJ193: =L186 -> 2.442857143 | AL193: =AL194+1 -> 2.5
B194: VC か 的中率 | C194: 99.8 | D194: 0.6 | E194: 100 | F194: 99.2 | H194: 100 | I194: 100 | J194: 9.98 | K194: 10 | L194: 9.92 | N194: =$E$20 -> 0.5 | AF194: VC 3 | AG194: =I189 -> 210 | AH194: =J189 -> 4.938095238 | AI194: =K189 -> 6.042857143 | AJ194: =L189 -> 3.833333333 | AL194: =AL195+1 -> 1.5
A195: AD | B195: AD 正答率 | C195: 96.5 | D195: 3.6 | E195: 100 | F195: 92.9 | G195: 94 | H195: 100 | I195: 100 | J195: 9.65 | K195: 10 | L195: 9.29 | M195: =G195/I195*10 -> 9.4 | N195: =$E$21 -> 5.5 | AF195: VC か | AG195: =I192 -> 210 | AH195: =J192 -> 6.3 | AI195: =K192 -> 7.457142857 | AJ195: =L192 -> 5.142857143 | AL195: 0.5
B196: AD 的中率 | C196: 67.8 | D196: 23.2 | E196: 91 | F196: 44.6 | H196: 100 | I196: 100 | J196: 6.78 | K196: 9.1 | L196: 4.46 | M196: =IF(G196="","",G196/I196*10) ->  | N196: =$E$22 -> 4.5 | P196: =M195 -> 9.4 | Q196: =N195 -> 5.5
A197: MU正答率 | B197: MU 3スパン | C197: 71.2 | D197: 18.2 | E197: 89.4 | F197: 53 | G197: 50 | H197: 100 | I197: 100 | J197: 7.12 | K197: 8.94 | L197: 5.3 | M197: =G197/I197*10 -> 5 | N197: =$E$23 -> 3.5 | P197: =M197 -> 5 | Q197: 3.5
B198: MU 4スパン | C198: 49.1 | D198: 21.8 | E198: 70.9 | F198: 27.3 | G198: 25 | H198: 100 | I198: 100 | J198: 4.91 | K198: 7.09 | L198: 2.73 | M198: =G198/I198*10 -> 2.5 | N198: =$E$24 -> 2.5 | P198: 2.5 | Q198: 2.5
A199: PASAT正答率 | B199: PASAT 2秒 | C199: 49.7 | D199: 19.6 | E199: 69.3 | F199: 30.1 | G199: 30 | H199: 100 | I199: 100 | J199: 4.97 | K199: 6.93 | L199: 3.01 | M199: =G199/I199*10 -> 3 | N199: =$E$25 -> 1.5 | P199: 3 | Q199: 1.5
B200: PASAT 1秒 | C200: 34.5 | D200: 14.4 | E200: 48.9 | F200: 20.1 | G200: 17 | H200: 100 | I200: 100 | J200: 3.45 | K200: 4.89 | L200: 2.01 | M200: =G200/I200*10 -> 1.7 | N200: =$E$26 -> 0.5 | P200: 1.7 | Q200: 0.5
A201: CPT2 | B201: SRT 平均 | C201: =C172 -> 298.1 | D201: =D172 -> 37.9 | E201: 336 | F201: 260.2 | H201: 800 | I201: 800 | J201: =C201/I201*800 -> 298.1 | K201: =E201/I201*800 -> 336 | L201: =F201/I201*800 -> 260.2 | N201: =$E$27 -> 2.5
B202: X 平均 | C202: 493 | D202: 43.3 | E202: 536.3 | F202: 449.7 | H202: 800 | I202: 800 | J202: =C202/I202*800 -> 493 | K202: =E202/I202*800 -> 536.3 | L202: =F202/I202*800 -> 449.7 | N202: =$E$28 -> 1.5
B203: AX 平均 | C203: =C174 -> 493 | D203: =D174 -> 59.8 | E203: 552.8 | F203: 433.2 | H203: 800 | I203: 800 | J203: =C203/I203*800 -> 493 | K203: =E203/I203*800 -> 552.8 | L203: =F203/I203*800 -> 433.2 | N203: =$E$29 -> 0.5
A206: M±SD | B206: 1 | C206: 入力値 | J206: グラフ出力 | R206: 入力値 | Y206: グラフ出力(左記の入力値を変換) | AH206: グラフ出力(左記の入力値を変換)
A207: 80代 | C207: 平均 | D207: SD | E207: SD上 | F207: SD下 | G207: cutoff | H207: 最大値 | I207: 最大値 | J207: 平均 | K207: SD上 | L207: SD下 | M207: cutoff | N207: 縦軸 | P207: 80代 | R207: 平均 | S207: SD | T207: SD上 | U207: SD下 | V207: cutoff | W207: 最大値 | X207: 最大値 | Y207: 平均 | Z207: SD上 | AA207: SD下 | AB207: cutoff | AC207: 縦軸 | AE207: 80代 | AG207: 最大値 | AH207: 平均 | AI207: SD上 | AJ207: SD下 | AK207: cutoff | AL207: 縦軸
A208: DigitSpan | B208: forward | C208: =C179 -> 5.4 | D208: =D179 -> 0.8 | E208: =IF(C208+($B$206*D208)>H208,H208,C208+($B$206*D208)) -> 6.2 | F208: =IF(C208-($B$206*D208)<0,0,C208-($B$206*D208)) -> 4.6 | G208: =IF(G179="","",G179) -> 4 | H208: 10 | I208: 10 | J208: =C208/I208*10 -> 5.4 | K208: =E208/I208*10 -> 6.2 | L208: =F208/I208*10 -> 4.6 | M208: =G208/I208*10 -> 4 | N208: =$E$5 -> 15.5 | P208: CPT2 誤反応 | Q208: SRT | T208: =IF(R208+($B$206*S208)>W208,W208,R208+($B$206*S208)) -> 0 | U208: =IF(R208-($B$206*S208)<0,0,R208-($B$206*S208)) -> 0 | V208: 4 | W208: 20 | X208: =W208 -> 20 | Y208: =R208/X208*10 -> 0 | Z208: =T208/X208*10 -> 0 | AA208: =U208/X208*10 -> 0 | AB208: =V208/X208*10 -> 2 | AC208: =AC209+1 -> 2.5 | AE208: DigitSpan | AF208: forward | AG208: =I208 -> 10 | AH208: 5.4 | AI208: 6.2 | AJ208: 4.6 | AK208: 4 | AL208: =AL209+1 -> 11.5
B209: backward | C209: =C180 -> 4.1 | D209: 0.9 | E209: =IF(C209+($B$206*D209)>H209,H209,C209+($B$206*D209)) -> 5 | F209: =IF(C209-($B$206*D209)<0,0,C209-($B$206*D209)) -> 3.2 | G209: =IF(G180="","",G180) -> 3 | H209: 10 | I209: 10 | J209: 4.1 | K209: 5 | L209: 3.2 | M209: =G209/I209*10 -> 3 | N209: =$E$6 -> 14.5 | Q209: X | T209: =IF(R209+($B$206*S209)>W209,W209,R209+($B$206*S209)) -> 0 | U209: =IF(R209-($B$206*S209)<0,0,R209-($B$206*S209)) -> 0 | V209: 10 | W209: 20 | X209: =W209 -> 20 | Y209: =R209/X209*10 -> 0 | Z209: =T209/X209*10 -> 0 | AA209: =U209/X209*10 -> 0 | AB209: =V209/X209*10 -> 5 | AC209: =AC210+1 -> 1.5 | AF209: backward | AG209: 10 | AH209: 4.1 | AI209: 5 | AJ209: 3.2 | AK209: 3 | AL209: 10.5
A210: Tappimg Span | B210: forward | C210: 5.3 | D210: 0.9 | E210: 6.2 | F210: 4.4 | G210: 4 | H210: 10 | I210: 10 | J210: 5.3 | K210: 6.2 | L210: 4.4 | M210: =G210/I210*10 -> 4 | N210: =$E$7 -> 13.5 | Q210: AX | T210: 0 | U210: 0 | V210: 11 | W210: 20 | X210: 20 | Y210: 0 | Z210: =T210/X210*10 -> 0 | AA210: 0 | AB210: =V210/X210*10 -> 5.5 | AC210: 0.5 | AE210: Tappimg Span | AF210: forward | AG210: 10 | AH210: 5.3 | AI210: 6.2 | AJ210: 4.4 | AK210: 4 | AL210: 9.5
B211: backward | C211: 4.9 | D211: 1.2 | E211: 6.1 | F211: 3.7 | G211: 4 | H211: 10 | I211: 10 | J211: 4.9 | K211: 6.1 | L211: 3.7 | M211: =G211/I211*10 -> 4 | N211: =$E$8 -> 12.5 | P211: CPT2 正答率 | Q211: SRT | R211: 99.7 | S211: 0.7 | T211: 100 | U211: 99 | W211: 100 | X211: 100 | Y211: 9.97 | Z211: =T211/X211*10 -> 10 | AA211: 9.9 | AC211: =AC212+1 -> 2.5 | AF211: backward | AG211: 10 | AH211: 4.9 | AI211: 6.1 | AJ211: 3.7 | AK211: 4 | AL211: 8.5
A212: VC図形△ | B212: VC△ 所要時間 | C212: 58.4 | D212: 13.8 | E212: 72.2 | F212: 44.6 | H212: 210 | I212: 210 | J212: 2.780952381 | K212: 3.438095238 | L212: 2.123809524 | N212: =$E$9 -> 11.5 | Q212: X | R212: 99.9 | S212: 0.5 | T212: 100 | U212: 99.4 | W212: 100 | X212: 100 | Y212: 9.99 | Z212: 10 | AA212: 9.94 | AC212: =AC213+1 -> 1.5 | AE212: VC図形△ | AF212: VC△ 正答率 | AG212: =I213 -> 100 | AH212: 9.65 | AI212: 10 | AJ212: 9.3 | AL212: 7.5
B213: VC△ 正答率 | C213: 96.5 | D213: 3.5 | E213: 100 | F213: 93 | H213: 100 | I213: 100 | J213: 9.65 | K213: 10 | L213: 9.3 | N213: =$E$10 -> 10.5 | Q213: AX | R213: 97.9 | S213: 3.6 | T213: 100 | U213: 94.3 | W213: 100 | X213: 100 | Y213: 9.79 | Z213: 10 | AA213: 9.43 | AC213: 0.5 | AF213: VC△ 的中率 | AG213: 100 | AH213: 9.99 | AI213: 10 | AJ213: 9.94 | AL213: 6.5
... 20 more rows
